Workbook

Sheet Sheet2 (hidden)
A2: 시도별 | B2: 급경사지 현황 | D2: 2017.12기준 | E2: 계 | F2: 신규 | G2: 시특법시설물 지정 | H2: 규모미달 | I2: 정비해소 | J2: 개발공사로 인한 해소 | K2: 중복대상지 정정
A3: 계 | B3: =SUM(B4:B20) ->  | D3: =SUM(D4:D20) -> 14,325 | E3: =F3-G3-H3-I3-J3-K3 ->  | F3: =SUM(F4:F20) ->  | G3: 30 | H3: 6 | I3: 4 | J3: 5 | K3: 3 | N3: =B4-D4 -> 
A4: 서울 | B4: =관리기관별!B5 ->  | D4: 821 | E4: =F4-G4-H4-I4-J4-K4 -> 0 | N4: =B5-D5 -> 
A5: 부산 | B5: =관리기관별!B6 ->  | C5: 완료 | D5: 701 | E5: -2 | F5: 22 | G5: 11 | H5: 5 | J5: 5 | K5: 3
A6: 대구 | B6: =관리기관별!B7 ->  | D6: 196 | E6: -15 | F6: 4 | G6: 19
A7: 인천 | B7: =관리기관별!B8 ->  | C7: 완료 | D7: 248 | E7: -3 | F7: 2 | H7: 1 | I7: 4
A8: 광주 | B8: =관리기관별!B9 ->  | D8: 143 | E8: 0
A9: 대전 | B9: =관리기관별!B10 ->  | D9: 211 | E9: 0
A10: 울산 | B10: =관리기관별!B11 ->  | C10: 완료 | D10: 389 | E10: 67 | F10: =456-389 -> 67
A11: 세종 | B11: =관리기관별!B12 ->  | D11: 66 | E11: 1 | F11: 1 | L11: 시스템 확인사항
A12: 경기 | B12: =관리기관별!B13 ->  | C12: 완료 | D12: 887 | F12: =B12-D12 -> 
A13: 강원 | B13: =관리기관별!B14 ->  | D13: 2,327 | E13: 0
A14: 충북 | B14: =관리기관별!B15 ->  | D14: 1,283 | E14: 0
A15: 충남 | B15: =관리기관별!B16 ->  | C15: 완료 | D15: 314 | F15: =B15-D15 -> 
A16: 전북 | B16: =관리기관별!B17 ->  | D16: 1,155 | E16: 0
A17: 전남 | B17: =관리기관별!B18 ->  | D17: 1,296 | E17: 0
A18: 경북 | B18: =관리기관별!B19 ->  | D18: 1,179 | E18: 0 | L18: =D18-B18 -> 
A19: 경남 | B19: =관리기관별!B20 ->  | D19: 3,068 | E19: 0 | N19: -4
A20: 제주 | B20: =관리기관별!B21 -> 37 | D20: 41 | E20: 0 | N20: 0
D24: =1149-1155 -> -6

Sheet 관리기관별 (hidden)
A1: 급경사지 관리기관별 현황('18. 12월말 기준)
A3: 시도 | B3: 계 | C3: 지자체 | D3: 지방산림청 | E3: 한국 농어촌공사 | F3: 한국토지 주택공사 | G3: 한국철도 시설공단 | H3: 도시 철도공사 | I3: 국립공원 관리공단 | J3: 기타 (개인,기업,공공기관)
A4: 총계 | B4: =SUM(B5:B21) ->  | C4: =SUM(C5:C21) -> 10,383 | E4: =SUM(E5:E21) ->  | J4: 1,798
A5: 서울 | B5: =SUM(C5:J5) ->  | C5: 809 | D5: =COUNTIF(#REF!,"지방산림청") ->  | E5: =COUNTIF(#REF!,"한국농어촌공사") ->  | F5: =COUNTIF(#REF!,"한국토지주택공사") ->  | G5: =COUNTIF(#REF!,"한국철도시설공단") ->  | H5: =COUNTIF(#REF!,"도시철도공사") ->  | I5: =COUNTIF(#REF!,"국립공원관리공단") ->  | J5: 35 | K5: 완료
A6: 부산 | B6: =SUM(C6:J6) ->  | C6: 342 | D6: =COUNTIF(#REF!,"지방산림청") ->  | E6: =COUNTIF(#REF!,"한국농어촌공사") ->  | F6: =COUNTIF(#REF!,"한국토지주택공사") ->  | G6: =COUNTIF(#REF!,"한국철도시설공단") ->  | H6: =COUNTIF(#REF!,"도시철도공사") ->  | I6: =COUNTIF(#REF!,"국립공원관리공단") ->  | J6: 306 | K6: 최종완료
A7: 대구 | B7: =SUM(C7:J7) ->  | C7: 83 | D7: =COUNTIF(#REF!,"지방산림청") ->  | E7: =COUNTIF(#REF!,"한국농어촌공사") ->  | F7: =COUNTIF(#REF!,"한국토지주택공사") ->  | G7: =COUNTIF(#REF!,"한국철도시설공단") ->  | H7: =COUNTIF(#REF!,"도시철도공사") ->  | I7: =COUNTIF(#REF!,"국립공원관리공단") ->  | J7: 77 | K7: 최종완료
A8: 인천 | B8: =SUM(C8:J8) ->  | C8: 82 | D8: =COUNTIF(#REF!,"지방산림청") ->  | E8: =COUNTIF(#REF!,"한국농어촌공사") ->  | F8: =COUNTIF(#REF!,"한국토지주택공사") ->  | G8: =COUNTIF(#REF!,"한국철도시설공단") ->  | H8: =COUNTIF(#REF!,"도시철도공사") ->  | I8: =COUNTIF(#REF!,"국립공원관리공단") ->  | J8: 159 | K8: 최종완료
A9: 광주 | B9: =SUM(C9:J9) ->  | C9: 67 | D9: =COUNTIF(#REF!,"지방산림청") ->  | E9: =COUNTIF(#REF!,"한국농어촌공사") ->  | F9: =COUNTIF(#REF!,"한국토지주택공사") ->  | G9: =COUNTIF(#REF!,"한국철도시설공단") ->  | H9: =COUNTIF(#REF!,"도시철도공사") ->  | I9: =COUNTIF(#REF!,"국립공원관리공단") ->  | J9: 55 | K9: 최종완료
A10: 대전 | B10: =SUM(C10:J10) ->  | C10: 123 | D10: =COUNTIF(#REF!,"지방산림청") ->  | E10: =COUNTIF(#REF!,"한국농어촌공사") ->  | F10: =COUNTIF(#REF!,"한국토지주택공사") ->  | G10: =COUNTIF(#REF!,"한국철도시설공단") ->  | H10: =COUNTIF(#REF!,"도시철도공사") ->  | I10: =COUNTIF(#REF!,"국립공원관리공단") ->  | J10: 26 | K10: 최종완료
A11: 울산 | B11: =SUM(C11:J11) ->  | C11: 281 | D11: =COUNTIF(#REF!,"지방산림청") ->  | E11: =COUNTIF(#REF!,"한국농어촌공사") ->  | F11: =COUNTIF(#REF!,"한국토지주택공사") ->  | G11: =COUNTIF(#REF!,"한국철도시설공단") ->  | H11: =COUNTIF(#REF!,"도시철도공사") ->  | I11: =COUNTIF(#REF!,"국립공원관리공단") ->  | J11: 27 | K11: 완료
A12: 세종 | C12: 52 | D12: =COUNTIF(#REF!,"지방산림청") ->  | E12: =COUNTIF(#REF!,"한국농어촌공사") ->  | F12: =COUNTIF(#REF!,"한국토지주택공사") ->  | G12: =COUNTIF(#REF!,"한국철도시설공단") ->  | H12: =COUNTIF(#REF!,"도시철도공사") ->  | I12: =COUNTIF(#REF!,"국립공원관리공단") ->  | J12: 7 | K12: 완료
A13: 경기 | C13: 502 | D13: =COUNTIF(#REF!,"지방산림청") ->  | E13: =COUNTIF(#REF!,"한국농어촌공사") ->  | F13: =COUNTIF(#REF!,"한국토지주택공사") ->  | G13: =COUNTIF(#REF!,"한국철도시설공단") ->  | H13: =COUNTIF(#REF!,"도시철도공사") ->  | I13: =COUNTIF(#REF!,"국립공원관리공단") ->  | J13: 373 | K13: 최종완료
A14: 강원 | C14: 1,880 | D14: =COUNTIF(#REF!,"지방산림청") ->  | E14: =COUNTIF(#REF!,"한국농어촌공사") ->  | F14: =COUNTIF(#REF!,"한국토지주택공사") ->  | G14: =COUNTIF(#REF!,"한국철도시설공단") ->  | H14: =COUNTIF(#REF!,"도시철도공사") ->  | I14: =COUNTIF(#REF!,"국립공원관리공단") ->  | J14: 115
A15: 충북 | C15: 953 | D15: =COUNTIF(#REF!,"지방산림청") ->  | E15: =COUNTIF(#REF!,"한국농어촌공사") ->  | F15: =COUNTIF(#REF!,"한국토지주택공사") ->  | G15: =COUNTIF(#REF!,"한국철도시설공단") ->  | H15: =COUNTIF(#REF!,"도시철도공사") ->  | I15: =COUNTIF(#REF!,"국립공원관리공단") ->  | J15: 249 | K15: 최종완료
A16: 충남 | C16: 199 | D16: =COUNTIF(#REF!,"지방산림청") ->  | E16: =COUNTIF(#REF!,"한국농어촌공사") ->  | F16: =COUNTIF(#REF!,"한국토지주택공사") ->  | G16: =COUNTIF(#REF!,"한국철도시설공단") ->  | H16: =COUNTIF(#REF!,"도시철도공사") ->  | I16: =COUNTIF(#REF!,"국립공원관리공단") ->  | J16: 39
A17: 전북 | C17: 972 | D17: =COUNTIF(#REF!,"지방산림청") ->  | E17: =COUNTIF(#REF!,"한국농어촌공사") ->  | F17: =COUNTIF(#REF!,"한국토지주택공사") ->  | G17: =COUNTIF(#REF!,"한국철도시설공단") ->  | H17: =COUNTIF(#REF!,"도시철도공사") ->  | I17: =COUNTIF(#REF!,"국립공원관리공단") ->  | J17: 95 | XFC17: =COUNTIF(#REF!,"지방산림청") -> 
A18: 전남 | C18: 832 | D18: =COUNTIF(#REF!,"지방산림청") ->  | E18: =COUNTIF(#REF!,"한국농어촌공사") ->  | F18: =COUNTIF(#REF!,"한국토지주택공사") ->  | G18: =COUNTIF(#REF!,"한국철도시설공단") ->  | H18: =COUNTIF(#REF!,"도시철도공사") ->  | I18: =COUNTIF(#REF!,"국립공원관리공단") ->  | J18: 62
A19: 경북 | C19: 995 | D19: =COUNTIF(#REF!,"지방산림청") ->  | E19: =COUNTIF(#REF!,"한국농어촌공사") ->  | F19: =COUNTIF(#REF!,"한국토지주택공사") ->  | G19: =COUNTIF(#REF!,"한국철도시설공단") ->  | H19: =COUNTIF(#REF!,"도시철도공사") ->  | I19: =COUNTIF(#REF!,"국립공원관리공단") ->  | J19: 21 | K19: 최종완료
A20: 경남 | C20: 2,174 | D20: =COUNTIF(#REF!,"지방산림청") ->  | E20: =COUNTIF(#REF!,"한국농어촌공사") ->  | F20: =COUNTIF(#REF!,"한국토지주택공사") ->  | G20: =COUNTIF(#REF!,"한국철도시설공단") ->  | H20: =COUNTIF(#REF!,"도시철도공사") ->  | I20: =COUNTIF(#REF!,"국립공원관리공단") ->  | J20: 152 | K20: 최종완료
A21: 제주 | B21: 37 | C21: 37 | D21: 0 | E21: 0 | F21: 0 | G21: 0 | H21: 0 | I21: 0 | J21: 0 | K21: 최종완료

Sheet 급경사지 등급별 (hidden)
A1: 급경사지 등급별 현황('18. 12월말 기준)
H3: (단위 : 개소)
A4: 시도 | B4: 계 | C4: A | D4: B | E4: C | F4: D | G4: E | H4: 비고
A5: 총계 | B5: =SUM(B6:B22) ->  | C5: =SUM(C6:C22) ->  | H5: 0
A6: 서울 | B6: =SUM(C6:H6) ->  | C6: =COUNTIF(#REF!,"A") ->  | D6: =COUNTIF(#REF!,"B") ->  | E6: =COUNTIF(#REF!,"C") ->  | F6: =COUNTIF(#REF!,"D") ->  | G6: =COUNTIF(#REF!,"E") -> 
A7: 부산 | C7: =COUNTIF(#REF!,"A") ->  | D7: =COUNTIF(#REF!,"B") ->  | E7: =COUNTIF(#REF!,"C") ->  | F7: =COUNTIF(#REF!,"D") ->  | G7: =COUNTIF(#REF!,"E") -> 
A8: 대구 | C8: =COUNTIF(#REF!,"A") ->  | D8: =COUNTIF(#REF!,"B") ->  | E8: =COUNTIF(#REF!,"C") ->  | F8: =COUNTIF(#REF!,"D") ->  | G8: =COUNTIF(#REF!,"E") -> 
A9: 인천 | C9: =COUNTIF(#REF!,"A") ->  | D9: =COUNTIF(#REF!,"B") ->  | E9: =COUNTIF(#REF!,"C") ->  | F9: =COUNTIF(#REF!,"D") ->  | G9: =COUNTIF(#REF!,"E") -> 
A10: 광주 | C10: =COUNTIF(#REF!,"A") ->  | D10: =COUNTIF(#REF!,"B") ->  | E10: =COUNTIF(#REF!,"C") ->  | F10: =COUNTIF(#REF!,"D") ->  | G10: =COUNTIF(#REF!,"E") -> 
A11: 대전 | C11: =COUNTIF(#REF!,"A") ->  | D11: =COUNTIF(#REF!,"B") ->  | E11: =COUNTIF(#REF!,"C") ->  | F11: =COUNTIF(#REF!,"D") ->  | G11: =COUNTIF(#REF!,"E") -> 
A12: 울산 | C12: =COUNTIF(#REF!,"A") ->  | D12: =COUNTIF(#REF!,"B") ->  | E12: =COUNTIF(#REF!,"C") ->  | F12: =COUNTIF(#REF!,"D") ->  | G12: =COUNTIF(#REF!,"E") -> 
A13: 세종 | C13: =COUNTIF(#REF!,"A") ->  | D13: =COUNTIF(#REF!,"B") ->  | E13: =COUNTIF(#REF!,"C") ->  | F13: =COUNTIF(#REF!,"D") ->  | G13: =COUNTIF(#REF!,"E") -> 
A14: 경기 | C14: =COUNTIF(#REF!,"A") ->  | D14: =COUNTIF(#REF!,"B") ->  | E14: =COUNTIF(#REF!,"C") ->  | F14: =COUNTIF(#REF!,"D") ->  | G14: =COUNTIF(#REF!,"E") -> 
A15: 강원 | C15: =COUNTIF(#REF!,"A") ->  | D15: =COUNTIF(#REF!,"B") ->  | E15: =COUNTIF(#REF!,"C") ->  | F15: =COUNTIF(#REF!,"D") ->  | G15: =COUNTIF(#REF!,"E") -> 
A16: 충북 | C16: =COUNTIF(#REF!,"A") ->  | D16: =COUNTIF(#REF!,"B") ->  | E16: =COUNTIF(#REF!,"C") ->  | F16: =COUNTIF(#REF!,"D") ->  | G16: =COUNTIF(#REF!,"E") -> 
A17: 충남 | C17: =COUNTIF(#REF!,"A") ->  | D17: =COUNTIF(#REF!,"B") ->  | E17: =COUNTIF(#REF!,"C") ->  | F17: =COUNTIF(#REF!,"D") ->  | G17: =COUNTIF(#REF!,"E") -> 
A18: 전북 | C18: =COUNTIF(#REF!,"A") ->  | D18: =COUNTIF(#REF!,"B") ->  | E18: =COUNTIF(#REF!,"C") ->  | F18: =COUNTIF(#REF!,"D") ->  | G18: =COUNTIF(#REF!,"E") ->  | XFA18: =COUNTIF(#REF!,"지방산림청") -> 
A19: 전남 | C19: =COUNTIF(#REF!,"A") ->  | D19: =COUNTIF(#REF!,"B") ->  | E19: =COUNTIF(#REF!,"C") ->  | F19: =COUNTIF(#REF!,"D") ->  | G19: =COUNTIF(#REF!,"E") -> 
A20: 경북 | C20: =COUNTIF(#REF!,"A") ->  | D20: 767 | E20: =COUNTIF(#REF!,"C") ->  | F20: =COUNTIF(#REF!,"D") ->  | G20: =COUNTIF(#REF!,"E") -> 
A21: 경남 | C21: =COUNTIF(#REF!,"A") ->  | D21: =COUNTIF(#REF!,"B") ->  | E21: =COUNTIF(#REF!,"C") ->  | F21: =COUNTIF(#REF!,"D") ->  | G21: =COUNTIF(#REF!,"E") -> 
A22: 제주 | C22: =COUNTIF(#REF!,"A") ->  | D22: =COUNTIF(#REF!,"b") ->  | E22: =COUNTIF(#REF!,"C") ->  | F22: =COUNTIF(#REF!,"D") ->  | G22: =COUNTIF(#REF!,"E") -> 

Sheet 급경사지 용도별 (hidden)
A1: 급경사지 관리기관별 현황('18. 12월말 기준)
A3: 시도 | B3: 계 | C3: 도로 | D3: 아파트 | E3: 주택 | F3: 공단 | G3: 공원 | H3: 철도 | I3: 기타 | J3: 비고
A4: 총계 | B4: =SUM(B5:B21) ->  | C4: =SUM(C5:C21) ->  | I4: =SUM(I5:I21) -> 
A5: 서울 | B5: =SUM(C5:J5) ->  | C5: =COUNTIF(#REF!,"도로(지,군,비)") ->  | D5: =COUNTIF(#REF!,"아파트") ->  | E5: =COUNTIF(#REF!,"주택") ->  | F5: =COUNTIF(#REF!,"공단") ->  | G5: =COUNTIF(#REF!,"공원") ->  | H5: =COUNTIF(#REF!,"철도") ->  | I5: =COUNTIF(#REF!,"기타") -> 
A6: 부산 | C6: =COUNTIF(#REF!,"도로") ->  | D6: =COUNTIF(#REF!,"아파트") ->  | E6: =COUNTIF(#REF!,"주택") ->  | F6: =COUNTIF(#REF!,"공단") ->  | G6: =COUNTIF(#REF!,"공원") ->  | H6: =COUNTIF(#REF!,"철도") ->  | I6: =COUNTIF(#REF!,"기타") -> 
A7: 대구 | C7: =COUNTIF(#REF!,"도로") ->  | D7: =COUNTIF(#REF!,"아파트") ->  | E7: =COUNTIF(#REF!,"주택") ->  | F7: =COUNTIF(#REF!,"공단") ->  | G7: =COUNTIF(#REF!,"공원") ->  | H7: =COUNTIF(#REF!,"철도") ->  | I7: =COUNTIF(#REF!,"기타") -> 
A8: 인천 | C8: =COUNTIF(#REF!,"도로") ->  | D8: =COUNTIF(#REF!,"아파트") ->  | E8: =COUNTIF(#REF!,"주택") ->  | F8: =COUNTIF(#REF!,"공단") ->  | G8: =COUNTIF(#REF!,"공원") ->  | H8: =COUNTIF(#REF!,"철도") ->  | I8: =COUNTIF(#REF!,"기타") -> 
A9: 광주 | C9: =COUNTIF(#REF!,"도로") ->  | D9: =COUNTIF(#REF!,"아파트") ->  | E9: =COUNTIF(#REF!,"주택") ->  | F9: =COUNTIF(#REF!,"공단") ->  | G9: =COUNTIF(#REF!,"공원") ->  | H9: =COUNTIF(#REF!,"철도") ->  | I9: =COUNTIF(#REF!,"기타") -> 
A10: 대전 | C10: =COUNTIF(#REF!,"도로") ->  | D10: =COUNTIF(#REF!,"아파트") ->  | E10: =COUNTIF(#REF!,"주택") ->  | F10: =COUNTIF(#REF!,"공단") ->  | G10: =COUNTIF(#REF!,"공원") ->  | H10: =COUNTIF(#REF!,"철도") ->  | I10: =COUNTIF(#REF!,"기타") -> 
A11: 울산 | C11: =COUNTIF(#REF!,"도로") ->  | D11: =COUNTIF(#REF!,"아파트") ->  | E11: =COUNTIF(#REF!,"주택") ->  | F11: =COUNTIF(#REF!,"공단") ->  | G11: =COUNTIF(#REF!,"공원") ->  | H11: =COUNTIF(#REF!,"철도") ->  | I11: =COUNTIF(#REF!,"기타") -> 
A12: 세종 | C12: =COUNTIF(#REF!,"도로") ->  | D12: =COUNTIF(#REF!,"아파트") ->  | E12: =COUNTIF(#REF!,"주택") ->  | F12: =COUNTIF(#REF!,"공단") ->  | G12: =COUNTIF(#REF!,"공원") ->  | H12: =COUNTIF(#REF!,"철도") ->  | I12: =COUNTIF(#REF!,"기타") -> 
A13: 경기 | C13: =COUNTIF(#REF!,"도로") ->  | D13: =COUNTIF(#REF!,"아파트") ->  | E13: =COUNTIF(#REF!,"주택") ->  | F13: =COUNTIF(#REF!,"공단") ->  | G13: =COUNTIF(#REF!,"공원") ->  | H13: =COUNTIF(#REF!,"철도") ->  | I13: =COUNTIF(#REF!,"기타") -> 
A14: 강원 | C14: =COUNTIF(#REF!,"도로") ->  | D14: =COUNTIF(#REF!,"아파트") ->  | E14: =COUNTIF(#REF!,"주택") ->  | F14: =COUNTIF(#REF!,"공단") ->  | G14: =COUNTIF(#REF!,"공원") ->  | H14: =COUNTIF(#REF!,"철도") ->  | I14: =COUNTIF(#REF!,"기타") -> 
A15: 충북 | C15: =COUNTIF(#REF!,"도로") ->  | D15: =COUNTIF(#REF!,"아파트") ->  | E15: =COUNTIF(#REF!,"주택") ->  | F15: =COUNTIF(#REF!,"공단") ->  | G15: =COUNTIF(#REF!,"공원") ->  | H15: =COUNTIF(#REF!,"철도") ->  | I15: =COUNTIF(#REF!,"기타") -> 
A16: 충남 | C16: =COUNTIF(#REF!,"도로") ->  | D16: =COUNTIF(#REF!,"아파트") ->  | E16: =COUNTIF(#REF!,"주택") ->  | F16: =COUNTIF(#REF!,"공단") ->  | G16: =COUNTIF(#REF!,"공원") ->  | H16: =COUNTIF(#REF!,"철도") ->  | I16: =COUNTIF(#REF!,"기타") -> 
A17: 전북 | C17: =COUNTIF(#REF!,"도로") ->  | D17: =COUNTIF(#REF!,"아파트") ->  | E17: =COUNTIF(#REF!,"주택") ->  | F17: =COUNTIF(#REF!,"공단") ->  | G17: =COUNTIF(#REF!,"공원") ->  | H17: =COUNTIF(#REF!,"철도") ->  | I17: =COUNTIF(#REF!,"기타") ->  | XFC17: =COUNTIF(#REF!,"지방산림청") -> 
A18: 전남 | C18: =COUNTIF(#REF!,"도로") ->  | D18: =COUNTIF(#REF!,"아파트") ->  | E18: =COUNTIF(#REF!,"주택") ->  | F18: =COUNTIF(#REF!,"공단") ->  | G18: =COUNTIF(#REF!,"공원") ->  | H18: =COUNTIF(#REF!,"철도") ->  | I18: =COUNTIF(#REF!,"기타") -> 
A19: 경북 | C19: =COUNTIF(#REF!,"도로") ->  | D19: =COUNTIF(#REF!,"아파트") ->  | E19: =COUNTIF(#REF!,"주택") ->  | F19: =COUNTIF(#REF!,"공단") ->  | G19: =COUNTIF(#REF!,"공원") ->  | H19: =COUNTIF(#REF!,"철도") ->  | I19: =COUNTIF(#REF!,"기타") -> 
A20: 경남 | C20: =COUNTIF(#REF!,"도로") ->  | D20: =COUNTIF(#REF!,"아파트") ->  | E20: =COUNTIF(#REF!,"주택") ->  | F20: =COUNTIF(#REF!,"공단") ->  | G20: =COUNTIF(#REF!,"공원") ->  | H20: =COUNTIF(#REF!,"철도") ->  | I20: =COUNTIF(#REF!,"기타") -> 
A21: 제주 | C21: =COUNTIF(#REF!,"도로") ->  | D21: =COUNTIF(#REF!,"아파트") ->  | E21: =COUNTIF(#REF!,"주택") ->  | F21: =COUNTIF(#REF!,"공단") ->  | G21: =COUNTIF(#REF!,"공원") ->  | H21: =COUNTIF(#REF!,"철도") ->  | I21: =COUNTIF(#REF!,"기타") -> 

Sheet 급경사지 구조별 현황 (hidden)
A1: 급경사지 관리기관별 현황('18. 12월말 기준)
A3: 시도 | B3: 계 | C3: 토사 | D3: 옹벽 | E3: 석축 | F3: 암반 | G3: 복합
A4: 총계 | B4: =SUM(B5:B21) -> 
A5: 서울 | B5: =SUM(C5:G5) ->  | C5: =COUNTIF(#REF!,"토사") ->  | D5: =COUNTIF(#REF!,"옹벽") ->  | E5: =COUNTIF(#REF!,"석축") ->  | F5: =COUNTIF(#REF!,"암반") ->  | G5: =COUNTIF(#REF!,"복합") -> 
A6: 부산 | C6: =COUNTIF(#REF!,"토사") ->  | D6: =COUNTIF(#REF!,"옹벽") ->  | E6: =COUNTIF(#REF!,"석축") ->  | F6: =COUNTIF(#REF!,"암반") ->  | G6: =COUNTIF(#REF!,"복합") -> 
A7: 대구 | C7: =COUNTIF(#REF!,"토사") ->  | D7: =COUNTIF(#REF!,"옹벽") ->  | E7: =COUNTIF(#REF!,"석축") ->  | F7: =COUNTIF(#REF!,"암반") ->  | G7: =COUNTIF(#REF!,"복합") -> 
A8: 인천 | C8: =COUNTIF(#REF!,"토사") ->  | D8: =COUNTIF(#REF!,"옹벽") ->  | E8: =COUNTIF(#REF!,"석축") ->  | F8: =COUNTIF(#REF!,"암반") ->  | G8: =COUNTIF(#REF!,"복합") -> 
A9: 광주 | C9: =COUNTIF(#REF!,"토사") ->  | D9: =COUNTIF(#REF!,"옹벽") ->  | E9: =COUNTIF(#REF!,"석축") ->  | F9: =COUNTIF(#REF!,"암반") ->  | G9: =COUNTIF(#REF!,"복합") -> 
A10: 대전 | C10: =COUNTIF(#REF!,"토사") ->  | D10: =COUNTIF(#REF!,"옹벽") ->  | E10: =COUNTIF(#REF!,"석축") ->  | F10: =COUNTIF(#REF!,"암반") ->  | G10: =COUNTIF(#REF!,"복합") -> 
A11: 울산 | C11: =COUNTIF(#REF!,"토사") ->  | D11: =COUNTIF(#REF!,"옹벽") ->  | E11: =COUNTIF(#REF!,"석축") ->  | F11: =COUNTIF(#REF!,"암반") ->  | G11: =COUNTIF(#REF!,"복합") -> 
A12: 세종 | C12: =COUNTIF(#REF!,"토사") ->  | D12: =COUNTIF(#REF!,"옹벽") ->  | E12: =COUNTIF(#REF!,"석축") ->  | F12: =COUNTIF(#REF!,"암반") ->  | G12: =COUNTIF(#REF!,"복합") -> 
A13: 경기 | C13: =COUNTIF(#REF!,"토사") ->  | D13: =COUNTIF(#REF!,"옹벽") ->  | E13: =COUNTIF(#REF!,"석축") ->  | F13: =COUNTIF(#REF!,"암반") ->  | G13: =COUNTIF(#REF!,"복합") -> 
A14: 강원 | C14: =COUNTIF(#REF!,"토사") ->  | D14: =COUNTIF(#REF!,"옹벽") ->  | E14: =COUNTIF(#REF!,"석축") ->  | F14: =COUNTIF(#REF!,"암반") ->  | G14: =COUNTIF(#REF!,"복합") -> 
A15: 충북 | C15: =COUNTIF(#REF!,"토사") ->  | D15: =COUNTIF(#REF!,"옹벽") ->  | E15: =COUNTIF(#REF!,"석축") ->  | F15: =COUNTIF(#REF!,"암반") ->  | G15: =COUNTIF(#REF!,"복합") -> 
A16: 충남 | C16: =COUNTIF(#REF!,"토사") ->  | D16: =COUNTIF(#REF!,"옹벽") ->  | E16: =COUNTIF(#REF!,"석축") ->  | F16: =COUNTIF(#REF!,"암반") ->  | G16: =COUNTIF(#REF!,"복합") -> 
A17: 전북 | C17: =COUNTIF(#REF!,"토사") ->  | D17: =COUNTIF(#REF!,"옹벽") ->  | E17: =COUNTIF(#REF!,"석축") ->  | F17: =COUNTIF(#REF!,"암반") ->  | G17: =COUNTIF(#REF!,"복합") ->  | XEZ17: =COUNTIF(#REF!,"지방산림청") -> 
A18: 전남 | C18: =COUNTIF(#REF!,"토사") ->  | D18: =COUNTIF(#REF!,"옹벽") ->  | E18: =COUNTIF(#REF!,"석축") ->  | F18: =COUNTIF(#REF!,"암반") ->  | G18: =COUNTIF(#REF!,"복합") -> 
A19: 경북 | C19: =COUNTIF(#REF!,"토사") ->  | D19: =COUNTIF(#REF!,"옹벽") ->  | E19: =COUNTIF(#REF!,"석축") ->  | F19: =COUNTIF(#REF!,"암반") ->  | G19: =COUNTIF(#REF!,"복합") -> 
A20: 경남 | C20: =COUNTIF(#REF!,"토사") ->  | D20: =COUNTIF(#REF!,"옹벽") ->  | E20: =COUNTIF(#REF!,"석축") ->  | F20: =COUNTIF(#REF!,"암반") ->  | G20: =COUNTIF(#REF!,"복합") -> 
A21: 제주 | C21: =COUNTIF(#REF!,"토사") ->  | D21: =COUNTIF(#REF!,"옹벽") ->  | E21: =COUNTIF(#REF!,"석축") ->  | F21: =COUNTIF(#REF!,"암반") ->  | G21: =COUNTIF(#REF!,"복합") -> 

Sheet 급경사지 유형별 현황 (hidden)
A1: 급경사지 관리기관별 현황('18. 12월말 기준)
A3: 시도 | B3: 합계 | E3: 자연비탈면 | H3: 인공비탈면 | K3: 비고
B4: 소계 | C4: 공공 | D4: 민간 | E4: 소계 | F4: 공공 | G4: 민간 | H4: 소계 | I4: 공공 | J4: 민간
A5: 계 | B5: =SUM(B6:B22) -> 15,075 | C5: 12,693 | D5: 2,382 | E5: 2,660 | F5: 2,299 | G5: 361 | H5: 12,415 | I5: 10,394 | J5: 2,021
A6: 서울 | B6: =C6+D6 -> 889 | C6: =F6+I6 -> 489 | D6: =G6+J6 -> 400 | E6: =F6+G6 -> 57 | F6: 33 | G6: 24 | H6: =I6+J6 -> 832 | I6: 456 | J6: 376
A7: 부산 | B7: =C7+D7 -> 704 | C7: =F7+I7 -> 385 | D7: =G7+J7 -> 319 | E7: =F7+G7 -> 119 | F7: 61 | G7: 58 | H7: =I7+J7 -> 585 | I7: 324 | J7: 261
A8: 대구 | B8: 186 | C8: 131 | D8: 55 | E8: 21 | F8: 19 | G8: 2 | H8: 165 | I8: 112 | J8: 53
A9: 인천 | B9: 247 | C9: 114 | D9: 133 | E9: 34 | F9: 18 | G9: 16 | H9: 213 | I9: 96 | J9: 117
A10: 광주 | B10: 157 | C10: 93 | D10: 64 | E10: 2 | F10: 2 | H10: 155 | I10: 91 | J10: 64
A11: 대전 | B11: 198 | C11: 165 | D11: 33 | E11: =F11+G11 -> 4 | G11: 4 | H11: 194 | I11: 165 | J11: 29
A12: 울산 | B12: 466 | C12: 420 | D12: 46 | E12: 21 | F12: 19 | G12: 2 | H12: 445 | I12: 401 | J12: 44
A13: 세종 | B13: 83 | C13: 75 | D13: 8 | E13: 5 | F13: 3 | G13: 2 | H13: 78 | I13: 72 | J13: 6
A14: 경기 | B14: 1,097 | C14: 758 | D14: 339 | E14: 80 | F14: 54 | G14: 26 | H14: 1,017 | I14: 704 | J14: 313
A15: 강원 | B15: 2,342 | C15: 2,238 | D15: 104 | E15: 523 | F15: 479 | G15: 44 | H15: 1,819 | I15: 1,759 | J15: 60
A16: 충북 | B16: 1,410 | C16: 1,145 | D16: 265 | E16: 185 | F16: 130 | G16: 55 | H16: 1,225 | I16: 1,015 | J16: 210
A17: 충남 | B17: 333 | C17: 262 | D17: 71 | E17: 76 | F17: 50 | G17: 26 | H17: 257 | I17: 212 | J17: 45
A18: 전북 | B18: 1,149 | C18: 1,044 | D18: 105 | E18: 174 | F18: 162 | G18: 12 | H18: 975 | I18: 882 | J18: 93 | XFC18: =COUNTIF(#REF!,"지방산림청") -> 
A19: 전남 | B19: 1,296 | C19: 1,129 | D19: 167 | E19: 339 | F19: 271 | G19: 68 | H19: 957 | I19: 858 | J19: 99
A20: 경북 | B20: 1,542 | C20: 1,507 | D20: 35 | E20: 443 | F20: 439 | G20: 4 | H20: 1,099 | I20: 1,068 | J20: 31
A21: 경남 | B21: 2,939 | C21: 2,703 | D21: 236 | E21: 562 | F21: 544 | G21: 18 | H21: 2,377 | I21: 2,159 | J21: 218
A22: 제주 | B22: 37 | C22: 35 | D22: 2 | E22: 15 | F22: 15 | H22: 22 | I22: 20 | J22: 2

Sheet 붕괴위험지역 정비사업 현황 (hidden)
A1: 급경사지 관리기관별 현황('18. 12월말 기준)
A3: 시도 | B3: 급경사지 현황 | C3: 급경사지 붕괴위험지역 지정(고시) 현황
C4: 계 (1+2) | D4: 공공시설 | H4: 민간시설
D5: 소계 | E5: 정비완료 | F5: 정비중 | G5: 정비예정 | H5: 소계 | I5: 정비완료 | J5: 정비중 | K5: 정비예정
A6: 계 | B6: 15,075 | C6: =SUM(C7:C23) -> 0 | D6: 0 | E6: 0 | F6: 0 | G6: 0 | H6: 0 | I6: 0 | J6: 0 | K6: 0
A7: 서울 | B7: 889 | C7: =D7+H7 -> 0 | D7: =E7+F7+G7 -> 0 | H7: =I7+J7+K7 -> 0
A8: 부산 | B8: 704 | C8: =D8+H8 -> 0 | D8: =E8+F8+G8 -> 0 | H8: =I8+J8+K8 -> 0
A9: 대구 | B9: 186 | C9: 0 | D9: 0 | H9: 0
A10: 인천 | B10: 247 | C10: 0 | D10: 0 | H10: 0
A11: 광주 | B11: 157 | C11: 0 | D11: 0 | H11: 0
A12: 대전 | B12: 198 | C12: 0 | D12: 0 | H12: 0
A13: 울산 | B13: 466 | C13: 0 | D13: 0 | H13: 0
A14: 세종 | B14: 83 | C14: 0 | D14: 0 | H14: 0
A15: 경기 | B15: 1,097 | C15: 0 | D15: 0 | H15: 0
A16: 강원 | B16: 2,342 | C16: 0 | D16: 0 | H16: 0
A17: 충북 | B17: 1,410 | C17: 0 | D17: 0 | H17: 0
A18: 충남 | B18: 333 | C18: 0 | D18: 0 | H18: 0
A19: 전북 | B19: 1,149 | C19: 0 | D19: 0 | H19: 0 | XFC19: =COUNTIF(#REF!,"지방산림청") -> 
A20: 전남 | B20: 1,296 | C20: 0 | D20: 0 | H20: 0
A21: 경북 | B21: 1,542 | C21: 0 | D21: 0 | H21: 0
A22: 경남 | B22: 2,939 | C22: 0 | D22: 0 | H22: 0
A23: 제주 | B23: 37 | C23: 0 | D23: 0 | H23: 0
C36: 185 | I36: 93 | J36: 166206 | P36: 79
J37: 83103

Sheet 붕괴위험지역 정비사업 대상 (hidden)
G1: =G7+G9+G11+G12+G14+G16+G18+G20+G22+G24+G26+G28+G30+G32+G34+G36+G38 -> 141
A2: 시도별 | B2: 급경사지 현황 | C2: 정비대상 | E2: 2018년까지 | G2: 2019년 추진 | I2: 2020년 이후
C3: 완료 | D3: 627개소 | E3: 완료 | F3: =E5 -> 627개소 | G3: 완료예정 | H3: =G6 -> 43개소 | I3: 잔량 | J3: =I5 -> 868개소
C4: 사업량 (완료) | D4: 사업비 (국비) | E4: 사업량 | F4: 사업비 (국비) | G4: 사업량 (완료예정) | H4: 사업비 (국비) | I4: 사업량 * 계속사업포함 | J4: 사업비 (국비) | K4: =M4+O4 -> 0
A5: 계 | B5: 15,075 | C5: =C7+C9+C12+C14+C16+C18+C20+C22+C24+C26+C28+C30+C32+C34+C36+C38 -> 1,565 | D5: =D7+D9+D11+D12+D14+D16+D18+D20+D22+D24+D26+D28+D30+D32+D34+D36+D38 -> 2,240,781 | E5: =E7+E9+E12+E14+E16+E18+E20+E22+E24+E26+E28+E30+E32+E34+E36+E38 -> 627 | F5: =F7+F9+F11+F12+F14+F16+F18+F20+F22+F24+F28+F30+F32+F34+F36+F38+F26 -> 875,561 | G5: =G7+G9+G11+G12+G14+G16+G18+G20+G22+G24+G28+G30+G32+G34+G36+G38+G26 -> 141 | H5: =H7+H9+H11+H12+H14+H16+H18+H20+H22+H24+H28+H30+H32+H34+H36+H38+H26 -> 169,332 | I5: =I7+I9+I11+I12+I14+I16+I18+I20+I22+I24+I28+I30+I32+I34+I36+I38+I26 -> 868 | J5: =J7+J9+J11+J12+J14+J16+J18+J20+J22+J24+J28+J30+J32+J34+J36+J38+J26 -> 1,195,888
C6: =C8+C10+C13+C15+C17+C19+C21+C23+C25+C27+C29+C31+C33+C35+C37+C39 -> 627 | D6: =ROUNDUP(D8+D10+D13+D15+D17+D19+D21+D23+D25+D27+D29+D31+D33+D35+D37+D39,0) -> 1,073,538 | F6: =F8+F10+F13+F15+F17+F19+F21+F23+F25+F27+F29+F31+F33+F35+F37+F39 -> 394,284 | G6: 43 | H6: =H8+H10+H13+H15+H17+H19+H21+H23+H25+H27+H29+H31+H33+H35+H37+H39 -> 84,666 | J6: =J8+J10+J13+J15+J17+J19+J21+J23+J25+J27+J29+J31+J33+J35+J37+J39 -> 594,588
A7: 서울 | B7: 889 | C7: 7 | D7: =F7+H7+J7 -> 6,907 | E7: 6 | F7: 6,907 | G7: 0 | H7: 0 | I7: 1 | J7: 0
C8: 6 | D8: 870 | F8: 870
A9: 부산 | B9: 704 | C9: 10 | D9: 25,429 | E9: 10 | F9: 25,429 | G9: 0 | H9: 0 | J9: 0
C10: 10 | D10: 12,698 | F10: 12,698 | G10: 0 | H10: 0 | J10: 0
A11: 대구 | B11: 186 | C11: 없음 | D11: 0 | E11: 없음
A12: 인천 | B12: 247 | C12: 3 | D12: 1,414 | E12: 3 | F12: 1,414 | G12: 0 | H12: 0 | J12: 0
C13: 3 | D13: 0
A14: 광주 | B14: 157 | C14: 11 | D14: 6,610 | E14: 8 | F14: 5,550 | I14: 3 | J14: 1,060
C15: 8 | D15: 3,105 | F15: 2,775 | J15: 330
A16: 대전 | B16: 198 | C16: 1 | D16: 300 | E16: 1 | F16: 300
C17: 1 | D17: 0
A18: 울산 | B18: 466 | C18: 2 | D18: 4,000 | E18: 2 | F18: 4,000
C19: 2 | D19: 2,000 | F19: 2,000
A20: 세종 | B20: 83 | C20: 1 | D20: 4,000 | F20: 0 | G20: 1 | H20: 1,000 | I20: 1 | J20: 3,000
D21: 2,000 | H21: 500 | J21: 1,500
A22: 경기 | B22: 1,097 | C22: 89 | D22: 43,474 | E22: 70 | F22: 29,373 | G22: 2 | H22: 2,518 | I22: 18 | J22: 11,583
C23: 70 | D23: 19,340 | F23: 13,169 | G23: 1 | H23: 1,259 | J23: 4,912
A24: 강원 | B24: 2,342 | C24: 363 | D24: 623,923 | E24: 133 | F24: 246,722 | G24: 33 | H24: 39,822 | I24: 211 | J24: 337,379
C25: 133 | D25: 309,247 | F25: 120,671 | G25: 19 | H25: 19,911 | J25: 168,665
A26: 충북 | B26: 1,410 | C26: 188 | D26: =F26+H26+J26 -> 184,016 | E26: 74 | F26: 63,756 | G26: 12 | H26: 10,680 | I26: 109 | J26: 109,580
C27: 74 | D27: 86,347 | F27: 26,517 | G27: 5 | H27: 5,340 | J27: 54,490
A28: 충남 | B28: 333 | C28: 87 | D28: 78,167 | E28: 32 | F28: 32,369 | G28: 13 | H28: 9,628 | I28: 48 | J28: 36,170
C29: 32 | D29: 37,573 | F29: 14,949 | G29: 7 | H29: 4,814 | J29: 17,810
A30: 전북 | B30: 1,149 | C30: 107 | D30: 192,512 | E30: 47 | F30: 76,254 | G30: 17 | H30: 18,960 | I30: 55 | J30: 97,298
C31: 47 | D31: 90,901 | F31: 33,692 | G31: 5 | H31: 9,480 | J31: 47,729
A32: 전남 | B32: 1,296 | C32: 337 | D32: 456,081 | E32: 90 | F32: 125,055 | G32: 27 | H32: 32,316 | I32: 230 | J32: 298,710
C33: 90 | D33: 219,814 | F33: 54,507 | G33: 17 | H33: 16,158 | J33: 149,149
A34: 경북 | B34: 1,542 | C34: 160 | D34: 239,773 | E34: 56 | F34: 85,241 | G34: 13 | H34: 22,530 | I34: 96 | J34: 132,002 | XER34: =COUNTIF(#REF!,"지방산림청") -> 
C35: 56 | D35: 108,522 | F35: 31,556 | G35: 8 | H35: 11,265 | J35: 65,701
A36: 경남 | B36: 2,939 | C36: 185 | D36: 331,825 | E36: 85 | F36: 139,017 | G36: 20 | H36: 26,102 | I36: 94 | J36: 166,706 | P36: 79
C37: 85 | D37: 162,447 | F37: 66,293 | G37: 6 | H37: 13,051 | J37: 83,103
A38: 제주 | B38: 37 | C38: 14 | D38: 42,350 | E38: 10 | F38: 34,174 | G38: 3 | H38: 5,776 | I38: 2 | J38: 2,400
C39: 10 | D39: 18,675 | F39: 14,587 | G39: 2 | H39: 2,888 | J39: 1,200

Sheet Sheet1
A1: 2020년도 급경사지 안전관리 대책 추진 대상 급경사지 점검결과
C3: =SUBTOTAL(103,B6:B15323) -> 30
A4: ① 급경사지 점검대상 | P4: ③ DB 현행화 | R4: ④ 결과 공개 | U4: ⑤ 점검 결과 | X4: ⑥ 후속 조치 | AC4: ⑦ 담당 | AF4: 비고
A5: 시·도 | B5: 시.군.구 | C5: 읍·면·동 | D5: 지번 | E5: 용도 | F5: 구조 | G5: 유형 | H5: 지구명 | I5: 관리기관 | J5: 공공/ 민간 | K5: 등급 | L5: 점검자 (공무원,공사·공단) | M5: 전문가 (민간전문가 등) | N5: 점검 시작일 (YYYY-MM-DD) | O5: 점검 종료일 (YYYY-MM-DD) | P5: NDMS 관리번호 (급경사지 정보시스템) | Q5: 급경사지 정보시스템 점검결과 입력일 (YYYY-MM-DD) | R5: 공개여부 | S5: 유형 | T5: 공개일 | U5: 조치 유형(대책) | V5: 조치 유형(소요기간) | W5: 주요 지적사항(내용) | X5: 진행상황 | Y5: 소요예산 (백만원) | Z5: 재원 유형 | AA5: 확보시기 | AB5: 완료시기 | AC5: 부서명 | AD5: 담당자 | AE5: 전화번호
A6: 전남 | B6: 목포시 | C6: 금화동 | D6: 1-28 | E6: 주택 | F6: 석축 | G6: 인공 | H6: 유달 1지구 | I6: 기타(기타(개인)) | J6: 민간 | K6: C | L6: 한명우,기세원 | N6: 2020-04-18 | O6: 2020-04-18 | P6: 4611000023 | Q6: 2020-04-20 | U6: 이상없음 | AC6: 건축행정과 | AD6: 한명우 | AE6: 061-270-3547
A7: 전남 | B7: 목포시 | C7: 금화동 | D7: 3-75 | E7: 주택 | F7: 석축 | G7: 인공 | H7: 유달 2지구 | I7: 기타(기타(개인)) | J7: 민간 | K7: C | L7: 한명우,기세원 | N7: 2020-04-18 | O7: 2020-04-18 | P7: 4611000022 | Q7: 2020-04-20 | U7: 이상없음 | AC7: 건축행정과 | AD7: 한명우 | AE7: 061-270-3547
A8: 전남 | B8: 목포시 | C8: 대양동 | D8: 230-10 | E8: 도로 | F8: 암반 | G8: 인공 | H8: 삼향 2지구 | I8: 지자체(목포시) | J8: 공공 | K8: B | L8: 건설과 나광열 | N8: 2020-11-10 | O8: 2020-11-13 | P8: 4611000058 | Q8: 2020-11-16 | R8: 공개 | S8: 홈페이지 게시 | T8: 2020-11-16 | U8: 이상없음 | AC8: 건설과 | AD8: 나광열 | AE8: 061-270-3451
A9: 전남 | B9: 목포시 | C9: 대양동 | D9: 산 109 | E9: 도로 | F9: 암반 | G9: 인공 | H9: 삼향 1지구 | I9: 지자체(목포시) | J9: 공공 | K9: C | L9: 도로정비팀장 손민수, 김도관, 나광열 | N9: 2020-02-17 | O9: 2020-04-16 | P9: 4611000052 | Q9: 2020-04-16 | U9: 이상없음 | AC9: 건설과 | AD9: 나광열 | AE9: 061-270-3451
A10: 전남 | B10: 목포시 | C10: 대양동 | D10: 산 940-27 | E10: 기타 | F10: 암반 | G10: 인공 | H10: 삼향 3지구 | I10: 지자체(목포시) | J10: 공공 | K10: B | L10: 건설과 나광열 | N10: 2020-11-10 | O10: 2020-11-13 | P10: 4611000016 | Q10: 2020-11-16 | R10: 공개 | S10: 홈페이지 게시 | T10: 2020-11-16 | U10: 이상없음 | AC10: 건설과 | AD10: 나광열 | AE10: 061-270-3451
A11: 전남 | B11: 목포시 | C11: 대양동 | D11: 산 96-6 | E11: 도로 | F11: 암반 | G11: 인공 | H11: 삼향 4지구 | I11: 지자체(목포시) | J11: 공공 | K11: B | L11: 건설과 나광열 | N11: 2020-11-10 | O11: 2020-11-13 | P11: 4611000054 | Q11: 2020-11-16 | R11: 공개 | S11: 홈페이지 게시 | T11: 2020-11-16 | U11: 이상없음 | AC11: 건설과 | AD11: 나광열 | AE11: 061-270-3451
A12: 전남 | B12: 목포시 | C12: 대양동 | D12: 산 99-10 | E12: 도로 | F12: 암반 | G12: 인공 | H12: 삼향 5지구 | I12: 지자체(목포시) | J12: 공공 | K12: C | L12: 도로정비팀장 손민수, 김도관, 나광열 | N12: 2020-02-17 | O12: 2020-04-16 | P12: 4611000053 | Q12: 2020-04-16 | U12: 이상없음 | AC12: 건설과 | AD12: 나광열 | AE12: 061-270-3451
A13: 전남 | B13: 목포시 | C13: 동명동 | D13: 43 | E13: 도로 | F13: 암반 | G13: 인공 | H13: 동명 지구 | I13: 지자체(목포시) | J13: 공공 | K13: C | L13: 도로정비팀장 손민수, 김도관, 나광열 | N13: 2020-02-17 | O13: 2020-04-16 | P13: 4611000001 | Q13: 2020-04-16 | U13: 이상없음 | AC13: 건설과 | AD13: 나광열 | AE13: 061-270-3451
A14: 전남 | B14: 목포시 | C14: 복만동 | D14: 2-20 | E14: 주택 | F14: 암반 | G14: 인공 | H14: 만호 2지구 | I14: 지자체(목포시) | J14: 공공 | K14: B | L14: 안전총괄과 이광윤 | N14: 2020-11-10 | O14: 2020-11-13 | P14: 4611000057 | Q14: 2020-11-16 | R14: 공개 | S14: 홈페이지 게시 | T14: 2020-11-16 | U14: 이상없음 | AC14: 안전총괄과 | AD14: 이광윤 | AE14: 061-270-8649
A15: 전남 | B15: 목포시 | C15: 산정동 | D15: 1008-4 | E15: 주택 | F15: 석축 | G15: 인공 | H15: 산정 1지구 | I15: 기타(기타(개인)) | J15: 민간 | K15: C | L15: 한명우,기세원 | N15: 2020-04-18 | O15: 2020-04-18 | P15: 4611000002 | Q15: 2020-04-20 | U15: 이상없음 | AC15: 건축행정과 | AD15: 한명우 | AE15: 061-270-3547
A16: 전남 | B16: 목포시 | C16: 산정동 | D16: 1530 | E16: 도로 | F16: 암반 | G16: 인공 | H16: 만호 1지구 | I16: 지자체(목포시) | J16: 공공 | K16: B | L16: 건설과 나광열 | N16: 2020-11-10 | O16: 2020-11-13 | P16: 4611000046 | Q16: 2020-11-16 | R16: 공개 | S16: 홈페이지 게시 | T16: 2020-11-16 | U16: 이상없음 | AC16: 건설과 | AD16: 나광열 | AE16: 061-270-3451
A17: 전남 | B17: 목포시 | C17: 산정동 | D17: 305-2 | E17: 아파트 | F17: 옹벽 | G17: 인공 | H17: 산정 2지구 | I17: 기타(기타(개인)) | J17: 민간 | K17: C | L17: 한명우,기세원 | N17: 2020-04-18 | O17: 2020-04-18 | P17: 4611000003 | Q17: 2020-04-20 | U17: 이상없음 | AC17: 건축행정과 | AD17: 한명우 | AE17: 061-270-3547
A18: 전남 | B18: 목포시 | C18: 산정동 | D18: 305-69 | E18: 주택 | F18: 석축 | G18: 인공 | H18: 산정 3지구 | I18: 기타(기타(개인)) | J18: 민간 | K18: B | L18: 건축행정과 한명우 | N18: 2020-11-10 | O18: 2020-11-13 | P18: 4611000017 | Q18: 2020-11-16 | R18: 공개 | S18: 홈페이지 게시 | T18: 2020-11-16 | U18: 이상없음 | AC18: 건축행정과 | AD18: 한명우 | AE18: 061-270-3547
A19: 전남 | B19: 목포시 | C19: 산정동 | D19: 994 | E19: 공원 | F19: 암반 | G19: 인공 | H19: 산정 4지구 | I19: 지자체(목포시) | J19: 공공 | K19: B | L19: 공원녹지과 정장범 | N19: 2020-11-10 | O19: 2020-11-13 | P19: 4611000015 | Q19: 2020-11-16 | R19: 공개 | S19: 홈페이지 게시 | T19: 2020-11-16 | U19: 이상없음 | AC19: 공원녹지과 | AD19: 정장범 | AE19: 061-270-3423
A20: 전남 | B20: 목포시 | C20: 상동 | D20: 1090 | E20: 도로 | F20: 석축 | G20: 인공 | H20: 신흥 지구 | I20: 지자체(목포시) | J20: 공공 | K20: D | L20: 도로정비팀장 손민수, 김도관, 나광열 | N20: 2020-02-17 | O20: 2020-04-16 | P20: 4611000066 | Q20: 2020-04-16 | U20: 이상없음 | AC20: 건설과 | AD20: 나광열 | AE20: 061-270-3451
A21: 전남 | B21: 목포시 | C21: 상동 | D21: 608-3 | E21: 도로 | F21: 석축 | G21: 인공 | H21: 하당 1지구 | I21: 지자체(목포시) | J21: 공공 | K21: A | L21: 건설과 나광열 | N21: 2020-11-10 | O21: 2020-11-13 | P21: 4611000062 | Q21: 2020-11-16 | R21: 공개 | S21: 홈페이지 게시 | T21: 2020-11-16 | U21: 이상없음 | AC21: 건설과 | AD21: 나광열 | AE21: 061-270-3451
A22: 전남 | B22: 목포시 | C22: 상동 | D22: 1038 | E22: 도로 | F22: 암반 | G22: 인공 | H22: 죽교 4지구 | I22: 지자체(목포시) | J22: 공공 | K22: B | L22: 건설과 나광열 | N22: 2020-11-10 | O22: 2020-11-13 | P22: 4611000048 | Q22: 2020-11-16 | R22: 공개 | S22: 홈페이지 게시 | T22: 2020-11-16 | U22: 이상없음 | AC22: 건설과 | AD22: 나광열 | AE22: 061-270-3451
A23: 전남 | B23: 목포시 | C23: 서산동 | D23: 1-45 | E23: 주택 | F23: 암반 | G23: 인공 | H23: 유달 4지구 | I23: 지자체(목포시) | J23: 공공 | K23: C | L23: 한명우,기세원 | N23: 2020-04-18 | O23: 2020-04-18 | P23: 4611000008 | Q23: 2020-04-20 | U23: 이상없음 | AC23: 건축행정과 | AD23: 한명우 | AE23: 061-270-3547
A24: 전남 | B24: 목포시 | C24: 서산동 | D24: 19-7 | E24: 도로 | F24: 암반 | G24: 인공 | H24: 유달 3지구 | I24: 기타(기타(개인)) | J24: 민간 | K24: B | L24: 건설과 나광열 | N24: 2020-11-10 | O24: 2020-11-13 | P24: 4611000045 | Q24: 2020-11-16 | R24: 공개 | S24: 홈페이지 게시 | T24: 2020-11-16 | U24: 이상없음 | AC24: 건설과 | AD24: 나광열 | AE24: 061-270-3451
A25: 전남 | B25: 목포시 | C25: 서산동 | D25: 2 | E25: 주택 | F25: 암반 | G25: 인공 | H25: 유달 5지구 | I25: 지자체(목포시) | J25: 공공 | K25: C | L25: 한명우,기세원 | N25: 2020-04-18 | O25: 2020-04-18 | P25: 4611000005 | Q25: 2020-04-20 | U25: 이상없음 | AC25: 건축행정과 | AD25: 한명우 | AE25: 061-270-3547
A26: 전남 | B26: 목포시 | C26: 서산동 | D26: 6-13 | E26: 주택 | F26: 암반 | G26: 인공 | H26: 유달 7지구 | I26: 지자체(목포시) | J26: 공공 | K26: C | L26: 한명우,기세원 | N26: 2020-04-18 | O26: 2020-04-18 | P26: 4611000045 | Q26: 2020-04-20 | U26: 이상없음 | AC26: 건축행정과 | AD26: 한명우 | AE26: 061-270-3547
A27: 전남 | B27: 목포시 | C27: 연산동 | D27: 1276 | E27: 도로 | F27: 토사 | G27: 인공 | H27: 산정 5지구 | I27: 지자체(목포시) | J27: 공공 | K27: A | L27: 건설과 나광열 | N27: 2020-11-10 | O27: 2020-11-13 | P27: 4611000019 | Q27: 2020-11-16 | R27: 공개 | S27: 홈페이지 게시 | T27: 2020-11-16 | U27: 이상없음 | AC27: 건설과 | AD27: 나광열 | AE27: 061-270-3451
A28: 전남 | B28: 목포시 | C28: 연산동 | D28: 347 | E28: 도로 | F28: 옹벽 | G28: 인공 | H28: 산정 6지구 | I28: 지자체(목포시) | J28: 공공 | K28: B | L28: 건설과 나광열 | N28: 2020-11-10 | O28: 2020-11-13 | P28: 4611000018 | Q28: 2020-11-16 | R28: 공개 | S28: 홈페이지 게시 | T28: 2020-11-16 | U28: 이상없음 | AC28: 건설과 | AD28: 나광열 | AE28: 061-270-3451
A29: 전남 | B29: 목포시 | C29: 연산동 | D29: 409-1 | E29: 아파트 | F29: 토사 | G29: 인공 | H29: 백련지구 | I29: 지자체(목포시) | J29: 공공 | K29: B | L29: 안전총괄과 이광윤 | N29: 2020-11-10 | O29: 2020-11-13 | P29: 4611000063 | Q29: 2020-11-16 | R29: 공개 | S29: 홈페이지 게시 | T29: 2020-11-16 | U29: 이상없음 | AC29: 안전총괄과 | AD29: 이광윤 | AE29: 061-270-8649
A30: 전남 | B30: 목포시 | C30: 옥암동 | D30: 825-10 | E30: 도로 | F30: 토사 | G30: 인공 | H30: 옥암 1지구 | I30: 지자체(목포시) | J30: 공공 | K30: B | L30: 건설과 나광열 | N30: 2020-11-10 | O30: 2020-11-13 | P30: 4611000049 | Q30: 2020-11-16 | R30: 공개 | S30: 홈페이지 게시 | T30: 2020-11-16 | U30: 이상없음 | AC30: 건설과 | AD30: 나광열 | AE30: 061-270-3451
A31: 전남 | B31: 목포시 | C31: 옥암동 | D31: 산 36-20 | E31: 도로 | F31: 암반 | G31: 인공 | H31: 옥암 2지구 | I31: 지자체(목포시) | J31: 공공 | K31: B | L31: 건설과 나광열 | N31: 2020-11-10 | O31: 2020-11-13 | P31: 4611000050 | Q31: 2020-11-16 | R31: 공개 | S31: 홈페이지 게시 | T31: 2020-11-16 | U31: 이상없음 | AC31: 건설과 | AD31: 나광열 | AE31: 061-270-3451
A32: 전남 | B32: 목포시 | C32: 옥암동 | D32: 산 37-1 | E32: 도로 | F32: 암반 | G32: 인공 | H32: 옥암 3지구 | I32: 지자체(목포시) | J32: 공공 | K32: B | L32: 건설과 나광열 | N32: 2020-11-10 | O32: 2020-11-13 | P32: 4611000051 | Q32: 2020-11-16 | R32: 공개 | S32: 홈페이지 게시 | T32: 2020-11-16 | U32: 이상없음 | AC32: 건설과 | AD32: 나광열 | AE32: 061-270-3451
A33: 전남 | B33: 목포시 | C33: 온금동 | D33: 200-4 | E33: 도로 | F33: 암반 | G33: 인공 | H33: 유달 6지구 | I33: 지자체(목포시) | J33: 공공 | K33: B | L33: 건설과 나광열 | N33: 2020-11-10 | O33: 2020-11-13 | P33: 4611000044 | Q33: 2020-11-16 | R33: 공개 | S33: 홈페이지 게시 | T33: 2020-11-16 | U33: 이상없음 | AC33: 건설과 | AD33: 나광열 | AE33: 061-270-3451
A34: 전남 | B34: 목포시 | C34: 온금동 | D34: 산 1 | E34: 도로 | F34: 암반 | G34: 인공 | H34: 온금 1지구 | I34: 지방산림청 | J34: 공공 | K34: C | L34: 정장범 | N34: 2020-04-21 | O34: 2020-04-21 | P34: 4611000064 | Q34: 2020-04-21 | U34: 이상없음 | AC34: 공원녹지과 | AD34: 정장범 | AE34: 061-270-3423
A35: 전남 | B35: 목포시 | C35: 온금동 | D35: 산 2 | E35: 공원 | F35: 암반 | G35: 인공 | H35: 온금 2지구 | I35: 지방산림청 | J35: 공공 | K35: C | L35: 정장범 | N35: 2020-04-21 | O35: 2020-04-21 | P35: 4611000065 | Q35: 2020-04-21 | U35: 이상없음 | AC35: 공원녹지과 | AD35: 정장범 | AE35: 061-270-3423
A36: 전남 | B36: 목포시 | C36: 용당동 | D36: 188-110 | E36: 기타 | F36: 토사 | G36: 인공 | H36: 용당 1지구 | I36: 지자체(목포시) | J36: 공공 | K36: C | L36: 안광호, 정경만 | N36: 2020-04-24 | O36: 2020-04-24 | P36: 4611000059 | Q36: 2020-04-24 | U36: 이상없음 | AC36: 안전총괄과 | AD36: 안광호 | AE36: 061-270-3620
A37: 전남 | B37: 목포시 | C37: 용해동 | D37: 1024 | E37: 도로 | F37: 옹벽 | G37: 인공 | H37: 용해 1지구 | I37: 지자체(목포시) | J37: 공공 | K37: A | L37: 건설과 나광열 | N37: 2020-11-10 | O37: 2020-11-13 | P37: 4611000025 | Q37: 2020-11-16 | R37: 공개 | S37: 홈페이지 게시 | T37: 2020-11-16 | U37: 이상없음 | AC37: 건설과 | AD37: 나광열 | AE37: 061-270-3451
A38: 전남 | B38: 목포시 | C38: 용해동 | D38: 138-19 | E38: 도로 | F38: 토사 | G38: 인공 | H38: 이로 1지구 | I38: 지자체(목포시) | J38: 공공 | K38: C | L38: 도로정비팀장 손민수, 김도관, 나광열 | N38: 2020-02-17 | O38: 2020-04-16 | P38: 4611000047 | Q38: 2020-04-16 | U38: 이상없음 | AC38: 건설과 | AD38: 나광열 | AE38: 061-270-3451
A39: 전남 | B39: 목포시 | C39: 용해동 | D39: 171-6 | E39: 도로 | F39: 토사 | G39: 인공 | H39: 이로 2지구 | I39: 지자체(목포시) | J39: 공공 | K39: C | L39: 도로정비팀장 손민수, 김도관, 나광열 | N39: 2020-02-17 | O39: 2020-04-16 | P39: 4611000030 | Q39: 2020-04-16 | U39: 이상없음 | AC39: 건설과 | AD39: 나광열 | AE39: 061-270-3451
A40: 전남 | B40: 목포시 | C40: 용해동 | D40: 380-5 | E40: 주택 | F40: 석축 | G40: 인공 | H40: 용해 2지구 | I40: 기타(기타(개인)) | J40: 민간 | K40: B | L40: 건축행정과 한명우 | N40: 2020-11-10 | O40: 2020-11-13 | P40: 4611000060 | Q40: 2020-11-16 | R40: 공개 | S40: 홈페이지 게시 | T40: 2020-11-16 | U40: 이상없음 | AC40: 건축행정과 | AD40: 한명우 | AE40: 061-270-3547
A41: 전남 | B41: 목포시 | C41: 용해동 | D41: 532-4 | E41: 기타 | F41: 토사 | G41: 인공 | H41: 용해 3지구 | I41: 기타(기타(개인)) | J41: 민간 | K41: C | L41: 안광호, 정경만 | N41: 2020-04-24 | O41: 2020-04-24 | P41: 4611000061 | Q41: 2020-04-24 | U41: 이상없음 | AC41: 안전총괄과 | AD41: 안광호 | AE41: 061-270-3620
A42: 전남 | B42: 목포시 | C42: 용해동 | D42: 561 | E42: 도로 | F42: 암반 | G42: 인공 | H42: 용해 4지구 | I42: 지자체(목포시) | J42: 공공 | K42: B | L42: 건설과 나광열 | N42: 2020-11-10 | O42: 2020-11-13 | P42: 4611000055 | Q42: 2020-11-16 | R42: 공개 | S42: 홈페이지 게시 | T42: 2020-11-16 | U42: 이상없음 | AC42: 건설과 | AD42: 나광열 | AE42: 061-270-3451
A43: 전남 | B43: 목포시 | C43: 용해동 | D43: 563-9 | E43: 도로 | F43: 암반 | G43: 인공 | H43: 용해 5지구 | I43: 지자체(목포시) | J43: 공공 | K43: B | L43: 건설과 나광열 | N43: 2020-11-10 | O43: 2020-11-13 | P43: 4611000056 | Q43: 2020-11-16 | R43: 공개 | S43: 홈페이지 게시 | T43: 2020-11-16 | U43: 이상없음 | AC43: 건설과 | AD43: 나광열 | AE43: 061-270-3451
A44: 전남 | B44: 목포시 | C44: 용해동 | D44: 70-4 | E44: 도로 | F44: 토사 | G44: 자연 | H44: 이로 3지구 | I44: 지자체(목포시) | J44: 공공 | K44: B | L44: 건설과 나광열 | N44: 2020-11-10 | O44: 2020-11-13 | P44: 4611000011 | Q44: 2020-11-16 | R44: 공개 | S44: 홈페이지 게시 | T44: 2020-11-16 | U44: 이상없음 | AC44: 건설과 | AD44: 나광열 | AE44: 061-270-3451
A45: 전남 | B45: 목포시 | C45: 죽교동 | D45: 465-157 | E45: 도로 | F45: 암반 | G45: 인공 | H45: 유달 8지구 | I45: 기타(기타(개인)) | J45: 민간 | K45: B | L45: 건설과 나광열 | N45: 2020-11-10 | O45: 2020-11-13 | P45: 4611000041 | Q45: 2020-11-16 | R45: 공개 | S45: 홈페이지 게시 | T45: 2020-11-16 | U45: 이상없음 | AC45: 건설과 | AD45: 나광열 | AE45: 061-270-3451
A46: 전남 | B46: 목포시 | C46: 죽교동 | D46: 465-94 | E46: 주택 | F46: 암반 | G46: 인공 | H46: 유달 9지구 | I46: 기타(기타(개인)) | J46: 민간 | K46: C | L46: 한명우,기세원 | N46: 2020-04-18 | O46: 2020-04-18 | P46: 4611000040 | Q46: 2020-04-20 | U46: 이상없음 | AC46: 건축행정과 | AD46: 한명우 | AE46: 061-270-3547
A47: 전남 | B47: 목포시 | C47: 죽교동 | D47: 468-1 | E47: 도로 | F47: 토사 | G47: 인공 | H47: 유달 10지구 | I47: 지자체(목포시) | J47: 공공 | K47: B | L47: 건설과 나광열 | N47: 2020-11-10 | O47: 2020-11-13 | P47: 4611000042 | Q47: 2020-11-16 | R47: 공개 | S47: 홈페이지 게시 | T47: 2020-11-16 | U47: 이상없음 | AC47: 건설과 | AD47: 나광열 | AE47: 061-270-3451
A48: 전남 | B48: 목포시 | C48: 죽교동 | D48: 498-95 | E48: 도로 | F48: 토사 | G48: 인공 | H48: 유달 11지구 | I48: 지자체(목포시) | J48: 공공 | K48: B | L48: 건설과 나광열 | N48: 2020-11-10 | O48: 2020-11-13 | P48: 4611000038 | Q48: 2020-11-16 | R48: 공개 | S48: 홈페이지 게시 | T48: 2020-11-16 | U48: 이상없음 | AC48: 건설과 | AD48: 나광열 | AE48: 061-270-3451
A49: 전남 | B49: 목포시 | C49: 죽교동 | D49: 498-98 | E49: 도로 | F49: 토사 | G49: 인공 | H49: 유달 12지구 | I49: 지자체(목포시) | J49: 공공 | K49: B | L49: 건설과 나광열 | N49: 2020-11-10 | O49: 2020-11-13 | P49: 4611000039 | Q49: 2020-11-16 | R49: 공개 | S49: 홈페이지 게시 | T49: 2020-11-16 | U49: 이상없음 | AC49: 건설과 | AD49: 나광열 | AE49: 061-270-3451
A50: 전남 | B50: 목포시 | C50: 죽교동 | D50: 516-3 | E50: 도로 | F50: 석축 | G50: 인공 | H50: 죽교 1지구 | I50: 지자체(목포시) | J50: 공공 | K50: C | L50: 도로정비팀장 손민수, 김도관, 나광열 | N50: 2020-02-17 | O50: 2020-04-16 | P50: 4611000036 | Q50: 2020-04-16 | U50: 이상없음 | AC50: 건설과 | AD50: 나광열 | AE50: 061-270-3451
A51: 전남 | B51: 목포시 | C51: 죽교동 | D51: 516-50 | E51: 도로 | F51: 석축 | G51: 인공 | H51: 죽교 2지구 | I51: 지자체(목포시) | J51: 공공 | K51: C | L51: 도로정비팀장 손민수, 김도관, 나광열 | N51: 2020-02-17 | O51: 2020-04-16 | P51: 4611000035 | Q51: 2020-04-16 | U51: 이상없음 | AC51: 건설과 | AD51: 나광열 | AE51: 061-270-3451
A52: 전남 | B52: 목포시 | C52: 죽교동 | D52: 521-29 | E52: 도로 | F52: 암반 | G52: 인공 | H52: 유달 13지구 | I52: 지자체(목포시) | J52: 공공 | K52: B | L52: 건설과 나광열 | N52: 2020-11-10 | O52: 2020-11-13 | P52: 4611000037 | Q52: 2020-11-16 | R52: 공개 | S52: 홈페이지 게시 | T52: 2020-11-16 | U52: 이상없음 | AC52: 건설과 | AD52: 나광열 | AE52: 061-270-3451
A53: 전남 | B53: 목포시 | C53: 죽교동 | D53: 87-1 | E53: 주택 | F53: 옹벽 | G53: 인공 | H53: 죽교 3지구 | I53: 기타(기타(개인)) | J53: 민간 | K53: C | L53: 한명우,기세원 | N53: 2020-04-18 | O53: 2020-04-18 | P53: 4611000012 | Q53: 2020-04-20 | U53: 이상없음 | AC53: 건축행정과 | AD53: 한명우 | AE53: 061-270-3547
A54: 전남 | B54: 목포시 | C54: 죽교동 | D54: 산 51-1 | E54: 도로 | F54: 암반 | G54: 인공 | H54: 유달 14지구 | I54: 지자체(목포시) | J54: 공공 | K54: B | L54: 건설과 나광열 | N54: 2020-11-10 | O54: 2020-11-13 | P54: 4611000043 | Q54: 2020-11-16 | R54: 공개 | S54: 홈페이지 게시 | T54: 2020-11-16 | U54: 이상없음 | AC54: 건설과 | AD54: 나광열 | AE54: 061-270-3451
A55: 전남 | B55: 목포시 | C55: 측후동 | D55: 4-1 | E55: 주택 | F55: 석축 | G55: 인공 | H55: 목원 1지구 | I55: 지자체(목포시) | J55: 공공 | K55: B | L55: 안전총괄과 이광윤 | N55: 2020-11-10 | O55: 2020-11-13 | P55: 4611000013 | Q55: 2020-11-16 | R55: 공개 | S55: 홈페이지 게시 | T55: 2020-11-16 | U55: 이상없음 | AC55: 안전총괄과 | AD55: 이광윤 | AE55: 061-270-8649
A56: 전남 | B56: 목포시 | C56: 호남동 | D56: 260 | E56: 주택 | F56: 토사 | G56: 인공 | H56: 목원 2지구 | I56: 지자체(목포시) | J56: 공공 | K56: B | L56: 건축행정과 한명우 | N56: 2020-11-10 | O56: 2020-11-13 | P56: 4611000014 | Q56: 2020-11-16 | R56: 공개 | S56: 홈페이지 게시 | T56: 2020-11-16 | U56: 이상없음 | AC56: 건축행정과 | AD56: 한명우 | AE56: 061-270-3547
A57: 전남 | B57: 여수시 | C57: 시전동 | D57: 76 | E57: 도로 | F57: 옹벽 | G57: 인공 | H57: 시전지구 -1 | I57: 지자체(여수시) | J57: 공공 | K57: A
A58: 전남 | B58: 여수시 | C58: 안산동 | D58: 537 | E58: 도로 | F58: 옹벽 | G58: 인공 | H58: 안산지구 -1 | I58: 지자체(여수시) | J58: 공공 | K58: C | L58: 강호권(도로시설관리과) | M58: 정신규, 황성원(㈜우빈기술공사) | N58: 2020-02-27 | O58: 2020-04-16 | P58: 4416000076 | Q58: 2020-04-27 | R58: 비공개 | U58: 시정(현장)조치 | V58: 현장조치 | W58: 배수로청소, 정비 | X58: 조치중 | AC58: 도로시설관리과 | AD58: 강호권 | AE58: 061-659-5113
A59: 전남 | B59: 여수시 | C59: 학동 | D59: 139 | E59: 도로 | F59: 석축 | G59: 인공 | H59: 학동지구-1 | I59: 지자체(여수시) | J59: 공공 | K59: C | L59: 강호권(도로시설관리과) | M59: 정신규, 황성원(㈜우빈기술공사) | N59: 2020-02-27 | O59: 2020-04-16 | P59: 4416000075 | Q59: 2020-04-27 | R59: 비공개 | U59: 이상없음 | AC59: 도로시설관리과 | AD59: 강호권 | AE59: 061-659-5113
A60: 전남 | B60: 여수시 | C60: 연등동 | D60: 247-27 | E60: 도로 | F60: 암반 | G60: 인공 | H60: 연등지구-1 | I60: 지자체(여수시) | J60: 공공 | K60: C | L60: 강호권(도로시설관리과) | M60: 정신규, 황성원(㈜우빈기술공사) | N60: 2020-02-27 | O60: 2020-04-16 | P60: 4416000076 | Q60: 2020-04-27 | R60: 비공개 | U60: 이상없음 | AC60: 도로시설관리과 | AD60: 강호권 | AE60: 061-659-5113
A61: 전남 | B61: 여수시 | C61: 군자동 | D61: 166 | E61: 도로 | F61: 복합 | G61: 인공 | H61: 군자지구-1 | I61: 지자체(여수시) | J61: 공공 | K61: C | L61: 강호권(도로시설관리과) | M61: 정신규, 황성원(㈜우빈기술공사) | N61: 2020-02-27 | O61: 2020-04-16 | P61: 4416000076 | Q61: 2020-04-27 | R61: 비공개 | U61: 이상없음 | AC61: 도로시설관리과 | AD61: 강호권 | AE61: 061-659-5113
A62: 전남 | B62: 여수시 | C62: 남산동 | D62: 산4 | E62: 도로 | F62: 복합 | G62: 인공 | H62: 남산지구-1 | I62: 지자체(여수시) | J62: 공공 | K62: D | L62: 강호권(도로시설관리과) | M62: 정신규, 황성원(㈜우빈기술공사) | N62: 2020-02-27 | O62: 2020-04-16 | P62: 4416000076 | Q62: 2020-04-27 | R62: 비공개 | U62: 시정(현장)조치 | V62: 현장조치 | W62: 배수로토사퇴적 준설 | X62: 조치중 | AC62: 도로시설관리과 | AD62: 강호권 | AE62: 061-659-5113
A63: 전남 | B63: 여수시 | C63: 삼산면 | D63: 서도리 1142-1 | E63: 도로 | F63: 복합 | G63: 인공 | H63: 삼산지구-1 | I63: 지자체(여수시) | J63: 공공 | K63: C | L63: 강호권(도로시설관리과) | M63: 정신규, 황성원(㈜우빈기술공사) | N63: 2020-02-27 | O63: 2020-04-16 | P63: 4416000076 | Q63: 2020-04-27 | R63: 비공개 | U63: 이상없음 | AC63: 도로시설관리과 | AD63: 강호권 | AE63: 061-659-5113
A64: 전남 | B64: 여수시 | C64: 화양면 | D64: 옥적리 산179-6 | E64: 도로 | F64: 암반 | G64: 인공 | H64: 화양지구-1 | I64: 지자체(여수시) | J64: 공공 | K64: C | L64: 강호권(도로시설관리과) | M64: 정신규, 황성원(㈜우빈기술공사) | N64: 2020-02-27 | O64: 2020-04-16 | P64: 4416000076 | Q64: 2020-04-27 | R64: 비공개 | U64: 이상없음 | AC64: 도로시설관리과 | AD64: 강호권 | AE64: 061-659-5113
A65: 전남 | B65: 여수시 | C65: 율촌면 | D65: 가장리 산161-1 | E65: 도로 | F65: 복합 | G65: 인공 | H65: 율촌지구-1 | I65: 지자체(여수시) | J65: 공공 | K65: B
A66: 전남 | B66: 여수시 | C66: 소라면 | D66: 대포리 산5-3 | E66: 도로 | F66: 암반 | G66: 인공 | H66: 소라지구-1 | I66: 지자체(여수시) | J66: 공공 | K66: B
A67: 전남 | B67: 여수시 | C67: 고소동 | D67: 467 | E67: 도로 | F67: 옹벽 | G67: 인공 | H67: 고소지구-1 | I67: 지자체(여수시) | J67: 공공 | K67: B
A68: 전남 | B68: 여수시 | C68: 고소동 | D68: 462 | E68: 도로 | F68: 옹벽 | G68: 인공 | H68: 고소지구-2 | I68: 지자체(여수시) | J68: 공공 | K68: B
A69: 전남 | B69: 여수시 | C69: 고소동 | D69: 754 | E69: 도로 | F69: 옹벽 | G69: 인공 | H69: 고소지구-3 | I69: 지자체(여수시) | J69: 공공 | K69: A
A70: 전남 | B70: 여수시 | C70: 중앙동 | D70: 248-1 | E70: 기타 | F70: 옹벽 | G70: 인공 | H70: 중앙지구-1 | I70: 지자체(여수시) | J70: 공공 | K70: C | L70: 강호권(도로시설관리과) | M70: 정신규, 황성원(㈜우빈기술공사) | N70: 2020-02-27 | O70: 2020-04-16 | P70: 4416000076 | Q70: 2020-04-27 | R70: 비공개 | U70: 이상없음 | AC70: 도로시설관리과 | AD70: 강호권 | AE70: 061-659-5113
A71: 전남 | B71: 여수시 | C71: 중앙동 | D71: 238-4 | E71: 도로 | F71: 옹벽 | G71: 인공 | H71: 중앙지구-2 | I71: 지자체(여수시) | J71: 공공 | K71: C | L71: 강호권(도로시설관리과) | M71: 정신규, 황성원(㈜우빈기술공사) | N71: 2020-02-27 | O71: 2020-04-16 | P71: 4416000076 | Q71: 2020-04-27 | R71: 비공개 | U71: 이상없음 | AC71: 도로시설관리과 | AD71: 강호권 | AE71: 061-659-5113
A72: 전남 | B72: 여수시 | C72: 중앙동 | D72: 53-1 | E72: 도로 | F72: 옹벽 | G72: 인공 | H72: 중앙지구-3 | I72: 지자체(여수시) | J72: 공공 | K72: B
A73: 전남 | B73: 여수시 | C73: 중앙동 | D73: 200-1 | E73: 도로 | F73: 옹벽 | G73: 인공 | H73: 중앙지구-4 | I73: 지자체(여수시) | J73: 공공 | K73: C | L73: 강호권(도로시설관리과) | M73: 정신규, 황성원(㈜우빈기술공사) | N73: 2020-02-27 | O73: 2020-04-16 | P73: 4416000076 | Q73: 2020-04-27 | R73: 비공개 | U73: 이상없음 | AC73: 도로시설관리과 | AD73: 강호권 | AE73: 061-659-5113
A74: 전남 | B74: 여수시 | C74: 돌산읍 | D74: 금성리 418-1 | E74: 도로 | F74: 옹벽 | G74: 인공 | H74: 돌산지구-1 | I74: 지자체(여수시) | J74: 공공 | K74: C | L74: 강호권(도로시설관리과) | M74: 정신규, 황성원(㈜우빈기술공사) | N74: 2020-02-27 | O74: 2020-04-16 | P74: 4416000076 | Q74: 2020-04-27 | R74: 비공개 | U74: 이상없음 | AC74: 도로시설관리과 | AD74: 강호권 | AE74: 061-659-5113
A75: 전남 | B75: 여수시 | C75: 수정동 | D75: 143-1 | E75: 도로 | F75: 옹벽 | G75: 인공 | H75: 수정지구-1 | I75: 지자체(여수시) | J75: 공공 | K75: C | L75: 강호권(도로시설관리과) | M75: 정신규, 황성원(㈜우빈기술공사) | N75: 2020-02-27 | O75: 2020-04-16 | P75: 4416000076 | Q75: 2020-04-27 | R75: 비공개 | U75: 이상없음 | AC75: 도로시설관리과 | AD75: 강호권 | AE75: 061-659-5113
A76: 전남 | B76: 여수시 | C76: 소호동 | D76: 422 | E76: 주택 | F76: 복합 | G76: 인공 | H76: 소호지구-1 | I76: 지자체(여수시) | J76: 공공 | K76: C | L76: 이은미(공영개발과) | M76: 정신규, 황성원(㈜우빈기술공사) | N76: 2020-02-27 | O76: 2020-04-16 | P76: 4416000076 | Q76: 2020-04-27 | R76: 비공개 | U76: 이상없음 | AC76: 공영개발과 | AD76: 이은미 | AE76: 061-659-4583
A77: 전남 | B77: 여수시 | C77: 미평동 | D77: 743 | E77: 아파트 | F77: 복합 | G77: 인공 | H77: 미평지구-1 | I77: 지자체(여수시) | J77: 공공 | K77: C | L77: 송수진(허가민원과) | M77: 정신규, 황성원(㈜우빈기술공사) | N77: 2020-02-27 | O77: 2020-04-16 | P77: 4416000076 | Q77: 2020-04-27 | R77: 비공개 | U77: 이상없음 | AC77: 허가민원과 | AD77: 송수진 | AE77: 061-659-4099
A78: 전남 | B78: 여수시 | C78: 학동 | D78: 124 | E78: 주택 | F78: 복합 | G78: 인공 | H78: 학동지구-2 | I78: 지자체(여수시) | J78: 공공 | K78: C | L78: 이은미(공영개발과) | M78: 정신규, 황성원(㈜우빈기술공사) | N78: 2020-02-27 | O78: 2020-04-16 | P78: 4416000076 | Q78: 2020-04-27 | R78: 비공개 | U78: 이상없음 | AC78: 공영개발과 | AD78: 이은미 | AE78: 061-659-4583
A79: 전남 | B79: 여수시 | C79: 돌산읍 | D79: 우두리 산138 | E79: 기타 | F79: 옹벽 | G79: 인공 | H79: 돌산지구-2 | I79: 지자체(여수시) | J79: 공공 | K79: A
A80: 전남 | B80: 여수시 | C80: 시전동 | D80: 109 | E80: 기타 | F80: 옹벽 | G80: 인공 | H80: 시전지구-2 | I80: 지자체(여수시) | J80: 공공 | K80: B
A81: 전남 | B81: 여수시 | C81: 오림동 | D81: 104 | E81: 기타 | F81: 토사 | G81: 인공 | H81: 오림지구-1 | I81: 지자체(여수시) | J81: 공공 | K81: A
A82: 전남 | B82: 여수시 | C82: 수정동 | D82: 332-12 | E82: 공원 | F82: 암반 | G82: 인공 | H82: 수정지구-2 | I82: 지자체(여수시) | J82: 공공 | K82: B
A83: 전남 | B83: 순천시 | C83: 서면 | D83: 청소리 산150-1 | E83: 도로 | F83: 복합 | G83: 인공 | H83: 순천 1 | I83: 전라남도 | J83: 공공 | K83: D | AF83: 붕괴위험지역 해제
A84: 전남 | B84: 순천시 | C84: 서면 | D84: 청소리 산150-1 | E84: 도로 | F84: 복합 | G84: 인공 | H84: 순천 2 | I84: 전라남도 | J84: 공공 | K84: D | AF84: 붕괴위험지역 해제
A85: 전남 | B85: 순천시 | C85: 낙안면 | D85: 교촌리 산9 | E85: 도로 | F85: 복합 | G85: 인공 | H85: 순천 3 | I85: 전라남도 | J85: 공공 | K85: D | L85: 시설7 박주량, 시설8 김선우 | N85: 2020-04-01 | O85: 2020-04-01 | P85: 4615000081 | Q85: 2020-04-27 | R85: 공개 | S85: 홈폐이지 | T85: 2020-04-27 | U85: 이상없음 | X85: 조치완료 | AC85: 안전총괄과 | AD85: 박주량 | AE85: 061-749-5657
A86: 전남 | B86: 순천시 | C86: 낙안면 | D86: 교촌리 산4-12 | E86: 도로 | F86: 복합 | G86: 인공 | H86: 순천 4 | I86: 전라남도 | J86: 공공 | K86: D | L86: 시설7 박주량, 시설8 김선우 | N86: 2020-04-01 | O86: 2020-04-01 | P86: 4615000082 | Q86: 2020-04-27 | R86: 공개 | S86: 홈폐이지 | T86: 2020-04-27 | U86: 이상없음 | X86: 조치완료 | AC86: 안전총괄과 | AD86: 박주량 | AE86: 061-749-5657
A87: 전남 | B87: 순천시 | C87: 상사면 | D87: 쌍지리 18-6 | E87: 도로 | F87: 복합 | G87: 인공 | H87: 순천 5 | I87: 전라남도 | J87: 공공 | K87: C | L87: 시설7 박주량, 시설8 송병권 | N87: 2020-03-25 | O87: 2020-03-25 | P87: 4615000083 | Q87: 2020-04-27 | R87: 공개 | S87: 홈폐이지 | T87: 2020-04-27 | U87: 이상없음 | X87: 조치완료 | AC87: 안전총괄과 | AD87: 박주량 | AE87: 061-749-5657
A88: 전남 | B88: 순천시 | C88: 송광면 | D88: 신평리 산1-1 | E88: 도로 | F88: 복합 | G88: 인공 | H88: 순천 6 | I88: 전라남도 | J88: 공공 | K88: C | L88: 시설6 심재용. 시설7 박주량 | N88: 2020-03-20 | O88: 2020-03-20 | P88: 4615000084 | Q88: 2020-04-27 | R88: 공개 | S88: 홈폐이지 | T88: 2020-04-27 | U88: 이상없음 | X88: 조치완료 | AC88: 안전총괄과 | AD88: 박주량 | AE88: 061-749-5657
A89: 전남 | B89: 순천시 | C89: 송광면 | D89: 신평리 산66-3 | E89: 도로 | F89: 복합 | G89: 인공 | H89: 순천 7 | I89: 전라남도 | J89: 공공 | K89: D | L89: 시설6 심재용. 시설7 박주량 | N89: 2020-03-20 | O89: 2020-03-20 | P89: 4615000085 | Q89: 2020-04-27 | R89: 공개 | S89: 홈폐이지 | T89: 2020-04-27 | U89: 이상없음 | X89: 조치완료 | AC89: 안전총괄과 | AD89: 박주량 | AE89: 061-749-5657
A90: 전남 | B90: 순천시 | C90: 송광면 | D90: 신평리 산99-7 | E90: 도로 | F90: 복합 | G90: 인공 | H90: 순천 8 | I90: 전라남도 | J90: 공공 | K90: D | L90: 시설6 심재용. 시설7 박주량 | N90: 2020-03-20 | O90: 2020-03-20 | P90: 4615000086 | Q90: 2020-04-27 | R90: 공개 | S90: 홈폐이지 | T90: 2020-04-27 | U90: 이상없음 | X90: 조치완료 | AC90: 안전총괄과 | AD90: 박주량 | AE90: 061-749-5657
A91: 전남 | B91: 순천시 | C91: 외서면 | D91: 월암리 산162 | E91: 도로 | F91: 복합 | G91: 인공 | H91: 순천 9 | I91: 전라남도 | J91: 공공 | K91: C | L91: 시설7 박주량, 시설8 남형규 | N91: 2020-04-03 | O91: 2020-04-03 | P91: 4615000087 | Q91: 2020-04-27 | R91: 공개 | S91: 홈폐이지 | T91: 2020-04-27 | U91: 이상없음 | X91: 조치완료 | AC91: 안전총괄과 | AD91: 박주량 | AE91: 061-749-5657
A92: 전남 | B92: 순천시 | C92: 승주읍 | D92: 도정리 산145-1 | E92: 도로 | F92: 복합 | G92: 인공 | H92: 순천 10 | I92: 전라남도 | J92: 공공 | K92: D | L92: 시설7 박주량, 시설9 이두희, 시설9 김성화 | N92: 2020-03-23 | O92: 2020-03-23 | P92: 4615000088 | Q92: 2020-04-27 | R92: 공개 | S92: 홈폐이지 | T92: 2020-04-27 | U92: 이상없음 | X92: 조치완료 | AC92: 안전총괄과 | AD92: 박주량 | AE92: 061-749-5657
A93: 전남 | B93: 순천시 | C93: 황전면 | D93: 덕림리 209-1 | E93: 도로 | F93: 복합 | G93: 인공 | H93: 순천 11 | I93: 전라남도 | J93: 공공 | K93: C | L93: 시설6 문광휘, 시설7 박주량 | N93: 2020-03-24 | O93: 2020-03-24 | P93: 4615000089 | Q93: 2020-04-27 | R93: 공개 | S93: 홈폐이지 | T93: 2020-04-27 | U93: 이상없음 | X93: 조치완료 | AC93: 안전총괄과 | AD93: 박주량 | AE93: 061-749-5657
A94: 전남 | B94: 순천시 | C94: 황전면 | D94: 죽청리 산255-1 | E94: 도로 | F94: 복합 | G94: 인공 | H94: 순천 12 | I94: 전라남도 | J94: 공공 | K94: D | L94: 시설6 문광휘, 시설7 박주량 | N94: 2020-03-24 | O94: 2020-03-24 | P94: 4615000090 | Q94: 2020-04-27 | R94: 공개 | S94: 홈폐이지 | T94: 2020-04-27 | U94: 이상없음 | X94: 조치완료 | AC94: 안전총괄과 | AD94: 박주량 | AE94: 061-749-5657
A95: 전남 | B95: 순천시 | C95: 황전면 | D95: 평촌리 산9-4 | E95: 도로 | F95: 복합 | G95: 인공 | H95: 순천 13 | I95: 전라남도 | J95: 공공 | K95: D | L95: 시설6 문광휘, 시설7 박주량 | N95: 2020-03-24 | O95: 2020-03-24 | P95: 4615000091 | Q95: 2020-04-27 | R95: 공개 | S95: 홈폐이지 | T95: 2020-04-27 | U95: 이상없음 | X95: 조치완료 | AC95: 안전총괄과 | AD95: 박주량 | AE95: 061-749-5657
A96: 전남 | B96: 순천시 | C96: 황전면 | D96: 평촌리 621-1 | E96: 도로 | F96: 복합 | G96: 인공 | H96: 순천 14 | I96: 전라남도 | J96: 공공 | K96: C | L96: 시설6 문광휘, 시설7 박주량 | N96: 2020-03-24 | O96: 2020-03-24 | P96: 4615000092 | Q96: 2020-04-27 | R96: 공개 | S96: 홈폐이지 | T96: 2020-04-27 | U96: 이상없음 | X96: 조치완료 | AC96: 안전총괄과 | AD96: 박주량 | AE96: 061-749-5657
A97: 전남 | B97: 순천시 | C97: 황전면 | D97: 죽청리 494-2 | E97: 도로 | F97: 복합 | G97: 인공 | H97: 순천 15 | I97: 전라남도 | J97: 공공 | K97: D | L97: 시설6 문광휘, 시설7 박주량 | N97: 2020-03-24 | O97: 2020-03-24 | P97: 4615000093 | Q97: 2020-04-27 | R97: 공개 | S97: 홈폐이지 | T97: 2020-04-27 | U97: 이상없음 | X97: 조치완료 | AC97: 안전총괄과 | AD97: 박주량 | AE97: 061-749-5657
A98: 전남 | B98: 순천시 | C98: 황전면 | D98: 죽청리 산2-1 | E98: 도로 | F98: 복합 | G98: 인공 | H98: 순천 16 | I98: 전라남도 | J98: 공공 | K98: D | L98: 시설6 문광휘, 시설7 박주량 | M98: 공학박사 곽정민 | N98: 2020-03-24 | O98: 2020-03-24 | P98: 4615000094 | Q98: 2020-04-27 | R98: 공개 | S98: 홈폐이지 | T98: 2020-04-27 | U98: 이상없음 | X98: 조치완료 | AC98: 안전총괄과 | AD98: 박주량 | AE98: 061-749-5657
A99: 전남 | B99: 순천시 | C99: 월등면 | D99: 운월리 산125-1 | E99: 도로 | F99: 복합 | G99: 인공 | H99: 순천 17 | I99: 전라남도 | J99: 공공 | K99: D | L99: 시설7박주량, 시설8 안융휘 | N99: 2020-03-30 | O99: 2020-03-30 | P99: 4615000095 | Q99: 2020-04-27 | R99: 공개 | S99: 홈폐이지 | T99: 2020-04-27 | U99: 이상없음 | X99: 조치완료 | AC99: 안전총괄과 | AD99: 박주량 | AE99: 061-749-5657
A100: 전남 | B100: 순천시 | C100: 승주읍 | D100: 신성리 산246-1 | E100: 도로 | F100: 복합 | G100: 인공 | H100: 순천 18 | I100: 전라남도 | J100: 공공 | K100: C | L100: 시설7박주량, 시설9 김성화 | N100: 2020-04-22 | O100: 2020-04-22 | P100: 4615000096 | Q100: 2020-04-27 | R100: 공개 | S100: 홈폐이지 | T100: 2020-04-27 | U100: 이상없음 | X100: 조치완료 | AC100: 안전총괄과 | AD100: 박주량 | AE100: 061-749-5657
A101: 전남 | B101: 순천시 | C101: 승주읍 | D101: 신성리 1100-3 | E101: 도로 | F101: 복합 | G101: 인공 | H101: 순천 19 | I101: 전라남도 | J101: 공공 | K101: C | L101: 시설7박주량, 시설9 김성화 | N101: 2020-04-22 | O101: 2020-04-22 | P101: 4615000097 | Q101: 2020-04-27 | R101: 공개 | S101: 홈폐이지 | T101: 2020-04-27 | U101: 이상없음 | X101: 조치완료 | AC101: 안전총괄과 | AD101: 박주량 | AE101: 061-749-5657
A102: 전남 | B102: 순천시 | C102: 승주읍 | D102: 신성리 산302-1 | E102: 도로 | F102: 복합 | G102: 인공 | H102: 순천 20 | I102: 전라남도 | J102: 공공 | K102: D | L102: 시설7박주량, 시설9 김성화 | N102: 2020-04-22 | O102: 2020-04-22 | P102: 4615000098 | Q102: 2020-04-27 | R102: 공개 | S102: 홈폐이지 | T102: 2020-04-27 | U102: 이상없음 | X102: 조치완료 | AC102: 안전총괄과 | AD102: 박주량 | AE102: 061-749-5657
A103: 전남 | B103: 순천시 | C103: 승주읍 | D103: 유평리 산119-4 | E103: 도로 | F103: 복합 | G103: 인공 | H103: 순천 21 | I103: 전라남도 | J103: 공공 | K103: D | L103: 시설7박주량, 시설9 김성화 | N103: 2020-04-22 | O103: 2020-04-22 | P103: 4615000099 | Q103: 2020-04-27 | R103: 공개 | S103: 홈폐이지 | T103: 2020-04-27 | U103: 이상없음 | X103: 조치완료 | AC103: 안전총괄과 | AD103: 박주량 | AE103: 061-749-5657
A104: 전남 | B104: 순천시 | C104: 승주읍 | D104: 유평리 산124-7 | E104: 도로 | F104: 복합 | G104: 인공 | H104: 순천 22 | I104: 전라남도 | J104: 공공 | K104: D | L104: 시설7박주량, 시설9 김성화 | N104: 2020-04-22 | O104: 2020-04-22 | P104: 4615000100 | Q104: 2020-04-27 | R104: 공개 | S104: 홈폐이지 | T104: 2020-04-27 | U104: 이상없음 | X104: 조치완료 | AC104: 안전총괄과 | AD104: 박주량 | AE104: 061-749-5657
A105: 전남 | B105: 순천시 | C105: 승주읍 | D105: 유평리 산133-7 | E105: 도로 | F105: 복합 | G105: 인공 | H105: 순천 23 | I105: 전라남도 | J105: 공공 | K105: D | L105: 시설7박주량, 시설9 김성화 | N105: 2020-04-22 | O105: 2020-04-22 | P105: 4615000101 | Q105: 2020-04-27 | R105: 공개 | S105: 홈폐이지 | T105: 2020-04-27 | U105: 이상없음 | X105: 조치완료 | AC105: 안전총괄과 | AD105: 박주량 | AE105: 061-749-5657
A106: 전남 | B106: 순천시 | C106: 승주읍 | D106: 남강리 산111-2 | E106: 도로 | F106: 복합 | G106: 인공 | H106: 순천 24 | I106: 전라남도 | J106: 공공 | K106: D | L106: 시설7박주량, 시설9 김성화 | M106: 공학박사 곽정민 | N106: 2020-04-22 | O106: 2020-04-22 | P106: 4615000102 | Q106: 2020-04-27 | R106: 공개 | S106: 홈폐이지 | T106: 2020-04-27 | U106: 이상없음 | X106: 조치완료 | AC106: 안전총괄과 | AD106: 박주량 | AE106: 061-749-5657
A107: 전남 | B107: 순천시 | C107: 승주읍 | D107: 남강리 산60-3 | E107: 도로 | F107: 복합 | G107: 인공 | H107: 순천 25 | I107: 전라남도 | J107: 공공 | K107: D | L107: 시설7박주량, 시설9 김성화 | N107: 2020-04-22 | O107: 2020-04-22 | P107: 4615000103 | Q107: 2020-04-27 | R107: 공개 | S107: 홈폐이지 | T107: 2020-04-27 | U107: 이상없음 | X107: 조치완료 | AC107: 안전총괄과 | AD107: 박주량 | AE107: 061-749-5657
A108: 전남 | B108: 순천시 | C108: 승주읍 | D108: 남강리 산69-1 | E108: 도로 | F108: 복합 | G108: 인공 | H108: 순천 26 | I108: 전라남도 | J108: 공공 | K108: D | L108: 시설7박주량, 시설9 김성화 | N108: 2020-04-22 | O108: 2020-04-22 | P108: 4615000104 | Q108: 2020-04-27 | R108: 공개 | S108: 홈폐이지 | T108: 2020-04-27 | U108: 이상없음 | X108: 조치완료 | AC108: 안전총괄과 | AD108: 박주량 | AE108: 061-749-5657
A109: 전남 | B109: 순천시 | C109: 낙안면 | D109: 석흥리 산41-2 | E109: 도로 | F109: 복합 | G109: 인공 | H109: 순천 27 | I109: 전라남도 | J109: 공공 | K109: D | L109: 시설7 박주량, 시설8 김선우 | N109: 2020-04-01 | O109: 2020-04-01 | P109: 4615000105 | Q109: 2020-04-27 | R109: 공개 | S109: 홈폐이지 | T109: 2020-04-27 | U109: 이상없음 | X109: 조치완료 | AC109: 안전총괄과 | AD109: 박주량 | AE109: 061-749-5657
A110: 전남 | B110: 순천시 | C110: 낙안면 | D110: 평사리 산6-1 | E110: 도로 | F110: 복합 | G110: 인공 | H110: 순천 28 | I110: 전라남도 | J110: 공공 | K110: D | L110: 시설7 박주량, 시설8 김선우 | N110: 2020-04-01 | O110: 2020-04-01 | P110: 4615000106 | Q110: 2020-04-27 | R110: 공개 | S110: 홈폐이지 | T110: 2020-04-27 | U110: 이상없음 | X110: 조치완료 | AC110: 안전총괄과 | AD110: 박주량 | AE110: 061-749-5657
A111: 전남 | B111: 순천시 | C111: 낙안면 | D111: 상송리 산2-3 | E111: 도로 | F111: 복합 | G111: 인공 | H111: 순천 29 | I111: 전라남도 | J111: 공공 | K111: D | L111: 시설7 박주량, 시설8 김선우 | N111: 2020-04-01 | O111: 2020-04-01 | P111: 4615000107 | Q111: 2020-04-27 | R111: 공개 | S111: 홈폐이지 | T111: 2020-04-27 | U111: 이상없음 | X111: 조치완료 | AC111: 안전총괄과 | AD111: 박주량 | AE111: 061-749-5657
A112: 전남 | B112: 순천시 | C112: 서면 | D112: 압곡리 695-25 | E112: 도로 | F112: 복합 | G112: 인공 | H112: 압곡 2 | I112: 순천시 | J112: 민간 | K112: D | L112: 시설7 박주량, 방재9 조계열 | N112: 2020-03-23 | O112: 2020-03-23 | P112: 4615000040 | Q112: 2020-04-27 | R112: 비공개(사유시설) | S112: 홈폐이지 | T112: 2020-04-27 | U112: 이상없음 | X112: 조치완료 | AC112: 안전총괄과 | AD112: 박주량 | AE112: 061-749-5657
A113: 전남 | B113: 순천시 | C113: 조곡동 | D113: 68-6 | E113: 주택 | F113: 복합 | G113: 인공 | H113: 조곡 2 | I113: 순천시 | J113: 민간 | K113: D | AF113: 붕괴위험지역 해제
A114: 전남 | B114: 순천시 | C114: 홍내동 | D114: 422-3 | E114: 기타 | F114: 복합 | G114: 인공 | H114: 홍내 | I114: 기타(한국자산관리공사) | J114: 공공 | K114: D | AF114: 붕괴위험지역 해제
A115: 전남 | B115: 순천시 | C115: 해룡면 | D115: 상내리 산 74-1 | E115: 기타 | F115: 복합 | G115: 인공 | H115: 상내 | I115: 순천시 | J115: 공공 | K115: D | AF115: 붕괴위험지역 해제
A116: 전남 | B116: 순천시 | C116: 해룡면 | D116: 신성리 205-1 | E116: 유지 | F116: 복합 | G116: 인공 | H116: 신성 | I116: 순천시 | J116: 공공 | K116: D | AF116: 붕괴위험지역 해제
A117: 전남 | B117: 순천시 | C117: 서면 | D117: 압곡리 696-10 | E117: 공장 | F117: 복합 | G117: 인공 | H117: 압곡 1 | I117: 순천시 | J117: 민간 | K117: C | AF117: 붕괴위험지역 해제
A118: 전남 | B118: 순천시 | C118: 승주읍 | D118: 도정리 1723 | E118: 주택 | F118: 토사 | G118: 인공 | H118: 축내 | I118: 순천시 | J118: 민간 | K118: D | AF118: 붕괴위험지역 해제
A119: 전남 | B119: 순천시 | C119: 조곡동 | D119: 71-49 | E119: 학교 | F119: 복합 | G119: 인공 | H119: 조곡1 | I119: 교육청 | J119: 공공 | K119: D | AF119: 붕괴위험지역 해제
A120: 전남 | B120: 나주시 | C120: 다시면 | D120: 운봉리 산68-4 | E120: 도로 | F120: 암반 | G120: 인공 | H120: 운봉 | I120: 나주시 | J120: 공공 | K120: E | L120: 문경 | M120: ㈜에세스엔지니어링 토질및기초기술사 이섭 | N120: 2020-03-23 | O120: 2020-03-23 | P120: 4617000001 | Q120: 2020.-04-24 | R120: 공개 | S120: 시 홈페이지 | T120: 2020-04-27 | U120: 이상없음 | AC120: 안전재난과 | AD120: 문경 | AE120: 061-339-7283
A121: 전남 | B121: 나주시 | C121: 삼영동 | D121: 252-2 | E121: 주택 | F121: 석축 | G121: 인공 | H121: 영강1 | I121: 기타(개인,기업) | J121: 민간 | K121: A
A122: 전남 | B122: 나주시 | C122: 남평읍 | D122: 서산리 산44-1 | E122: 주택 | F122: 암반 | G122: 인공 | H122: 서산1 | I122: 기타(개인,기업) | J122: 민간 | K122: A
A123: 전남 | B123: 나주시 | C123: 남평읍 | D123: 서산리 산49-5 | E123: 도로 | F123: 암반 | G123: 인공 | H123: 서산2 | I123: 전라남도 | J123: 공공 | K123: A
A124: 전남 | B124: 나주시 | C124: 남평읍 | D124: 서산리 산 49-11 | E124: 도로 | F124: 암반 | G124: 인공 | H124: 서산3 | I124: 전라남도 | J124: 공공 | K124: A
A125: 전남 | B125: 나주시 | C125: 남평읍 | D125: 서산리 산 74 | E125: 도로 | F125: 암반 | G125: 인공 | H125: 서산4 | I125: 전라남도 | J125: 공공 | K125: A
A126: 전남 | B126: 나주시 | C126: 남평읍 | D126: 오계리 산105 | E126: 도로 | F126: 암반 | G126: 인공 | H126: 오계 | I126: 전라남도 | J126: 공공 | K126: D | L126: 문경 | M126: ㈜에세스엔지니어링 토질및기초기술사 이섭 | N126: 2020-03-18 | O126: 2020-03-18 | P126: 4617000007 | Q126: 2020.-04-24 | R126: 공개 | S126: 시 홈페이지 | T126: 2020-04-27 | U126: 보수·보강 | V126: 단기조치 | W126: ○ 비탈면 높이가 높게 형성된 비탈면에서 큰 규모의 낙석발생이 예상되므로 추가로 낙석방지망 설치 필요 | Y126: 25 | AC126: 안전재난과 | AD126: 문경 | AE126: 061-339-7283 | AF126: 지방도 내 급경사지로 전남도 도로관리사업소 사업 시행
A127: 전남 | B127: 나주시 | C127: 남평읍 | D127: 노동리 산53-3 | E127: 도로 | F127: 암반 | G127: 인공 | H127: 노동 | I127: 전라남도 | J127: 공공 | K127: A
A128: 전남 | B128: 나주시 | C128: 남평읍 | D128: 풍림리 산16-1 | E128: 도로 | F128: 암반 | G128: 인공 | H128: 풍림1 | I128: 전라남도 | J128: 공공 | K128: A
A129: 전남 | B129: 나주시 | C129: 남평읍 | D129: 풍림리 산53-6 | E129: 공단 | F129: 토사 | G129: 자연 | H129: 풍림2 | I129: 기타(개인,기업) | J129: 민간 | K129: A
A130: 전남 | B130: 나주시 | C130: 남평읍 | D130: 풍림리 465-1 | E130: 공단 | F130: 석축 | G130: 인공 | H130: 풍림3 | I130: 기타(개인,기업) | J130: 민간 | K130: A
A131: 전남 | B131: 나주시 | C131: 남평읍 | D131: 수원리 654-4 | E131: 기타 | F131: 석축 | G131: 인공 | H131: 수원 | I131: 전라남도 | J131: 공공 | K131: A
A132: 전남 | B132: 나주시 | C132: 남평읍 | D132: 교촌리 산3 | E132: 기타 | F132: 암반 | G132: 인공 | H132: 교촌 | I132: 전라남도 | J132: 공공 | K132: A
A133: 전남 | B133: 나주시 | C133: 세지면 | D133: 송제리 531 | E133: 주택 | F133: 토사 | G133: 인공 | H133: 송제1 | I133: 기타(개인,기업) | J133: 민간 | K133: B
A134: 전남 | B134: 나주시 | C134: 세지면 | D134: 송제리 87-1 | E134: 주택 | F134: 토사 | G134: 인공 | H134: 송제2 | I134: 기타(개인,기업) | J134: 민간 | K134: B
A135: 전남 | B135: 나주시 | C135: 세지면 | D135: 성산리 806-7 | E135: 도로 | F135: 토사 | G135: 인공 | H135: 성산 | I135: 나주시 | J135: 공공 | K135: B
A136: 전남 | B136: 나주시 | C136: 문평면 | D136: 대도리 산195-2 | E136: 도로 | F136: 암반 | G136: 인공 | H136: 대도 | I136: 나주시 | J136: 공공 | K136: B
A137: 전남 | B137: 나주시 | C137: 문평면 | D137: 국동리 산 51 | E137: 도로 | F137: 암반 | G137: 인공 | H137: 국동 | I137: 전라남도 | J137: 공공 | K137: D | L137: 문경 | M137: ㈜에세스엔지니어링 토질및기초기술사 이섭 | N137: 2020-03-24 | O137: 2020-03-24 | P137: 4617000018 | Q137: 2020.-04-24 | R137: 공개 | S137: 시 홈페이지 | T137: 2020-04-27 | U137: 보수·보강 | V137: 단기조치 | W137: ○ 지속적인 낙석발생으로 인한 낙석방지울타리 파손발생 및 배수로 불량에 따른 우기시 도로 내로 우수침범 우려가 있으므로 보강공사 필요 | Y137: 6,769 | AC137: 안전재난과 | AD137: 문경 | AE137: 061-339-7283 | AF137: 지방도 내 급경사지로 전남도 도로관리사업소 사업 시행
A138: 전남 | B138: 나주시 | C138: 문평면 | D138: 송산리 산25 | E138: 도로 | F138: 암반 | G138: 인공 | H138: 송산 | I138: 전라남도 | J138: 공공 | K138: D | L138: 문경 | M138: ㈜에세스엔지니어링 토질및기초기술사 이섭 | N138: 2020-03-24 | O138: 2020-03-24 | P138: 4617000047 | Q138: 2020.-04-24 | R138: 공개 | S138: 시 홈페이지 | T138: 2020-04-27 | U138: 보수·보강 | V138: 중·장기조치 | W138: ○ 낙석방지망 파손구간 보수완료 및 지속적인 낙석으로 인한 낙석위험성 내재로 보강방안 수립 필요 | Y138: 2,375 | AC138: 안전재난과 | AD138: 문경 | AE138: 061-339-7283 | AF138: 지방도 내 급경사지로 전남도 도로관리사업소 사업 시행
A139: 전남 | B139: 나주시 | C139: 금천면 | D139: 오강리 175 | E139: 주택 | F139: 토사 | G139: 자연 | H139: 오강 | I139: 기타(개인,기업) | J139: 민간 | K139: A
A140: 전남 | B140: 나주시 | C140: 금천면 | D140: 광암리 65 | E140: 주택 | F140: 토사 | G140: 자연 | H140: 광암1 | I140: 기타(개인,기업) | J140: 민간 | K140: B
A141: 전남 | B141: 나주시 | C141: 금천면 | D141: 광암리 335 | E141: 주택 | F141: 토사 | G141: 인공 | H141: 광암2 | I141: 기타(개인,기업) | J141: 민간 | K141: B
A142: 전남 | B142: 나주시 | C142: 산포면 | D142: 등정리 419-3 | E142: 도로 | F142: 암반 | G142: 인공 | H142: 등정 | I142: 나주시 | J142: 공공 | K142: A
A143: 전남 | B143: 나주시 | C143: 다도면 | D143: 신동리 산45 | E143: 도로 | F143: 암반 | G143: 인공 | H143: 신동1 | I143: 나주시 | J143: 공공 | K143: B
A144: 전남 | B144: 나주시 | C144: 다도면 | D144: 신동리 54 | E144: 도로 | F144: 암반 | G144: 인공 | H144: 신동2 | I144: 나주시 | J144: 공공 | K144: B
A145: 전남 | B145: 나주시 | C145: 다도면 | D145: 방산리 36-3 | E145: 도로 | F145: 암반 | G145: 인공 | H145: 방산1 | I145: 나주시 | J145: 공공 | K145: A
A146: 전남 | B146: 나주시 | C146: 다도면 | D146: 방산리 산33 | E146: 도로 | F146: 암반 | G146: 인공 | H146: 방산2 | I146: 나주시 | J146: 공공 | K146: A
A147: 전남 | B147: 나주시 | C147: 다도면 | D147: 암정리 산71-2 | E147: 도로 | F147: 암반 | G147: 인공 | H147: 암정 | I147: 전라남도 | J147: 공공 | K147: A
A148: 전남 | B148: 나주시 | C148: 봉황면 | D148: 죽석리 산44-5 | E148: 도로 | F148: 석축 | G148: 인공 | H148: 죽석 | I148: 나주시 | J148: 공공 | K148: A
A149: 전남 | B149: 나주시 | C149: 봉황면 | D149: 송현리 산65-3 | E149: 도로 | F149: 암반 | G149: 인공 | H149: 송현 | I149: 나주시 | J149: 공공 | K149: A
A150: 전남 | B150: 나주시 | C150: 봉황면 | D150: 만봉리 산125-1 | E150: 도로 | F150: 암반 | G150: 인공 | H150: 만봉1 | I150: 전라남도 | J150: 공공 | K150: A
A151: 전남 | B151: 나주시 | C151: 봉황면 | D151: 만봉리 산58-1 | E151: 도로 | F151: 암반 | G151: 인공 | H151: 만봉2 | I151: 전라남도 | J151: 공공 | K151: A
A152: 전남 | B152: 나주시 | C152: 봉황면 | D152: 덕곡리 산124-6 | E152: 도로 | F152: 암반 | G152: 인공 | H152: 덕곡 | I152: 전라남도 | J152: 공공 | K152: A
A153: 전남 | B153: 나주시 | C153: 송월동 | D153: 893-1 | E153: 주택 | F153: 토사 | G153: 자연 | H153: 송월1 | I153: 기타(개인,기업) | J153: 민간 | K153: B
A154: 전남 | B154: 나주시 | C154: 송월동 | D154: 900-8 | E154: 도로 | F154: 토사 | G154: 자연 | H154: 송월2 | I154: 기타(개인,기업) | J154: 민간 | K154: B
A155: 전남 | B155: 나주시 | C155: 송월동 | D155: 836-3 | E155: 주택 | F155: 토사 | G155: 자연 | H155: 송월3 | I155: 기타(개인,기업) | J155: 민간 | K155: B
A156: 전남 | B156: 나주시 | C156: 삼영동 | D156: 258-1 | E156: 주택 | F156: 옹벽 | G156: 자연 | H156: 영강2 | I156: 기타(개인,기업) | J156: 민간 | K156: A
A157: 전남 | B157: 나주시 | C157: 경현동 | D157: 산12-8 | E157: 도로 | F157: 암반 | G157: 인공 | H157: 경현 | I157: 나주시 | J157: 공공 | K157: B
A158: 전남 | B158: 나주시 | C158: 성북동 | D158: 26-2 | E158: 도로 | F158: 토사 | G158: 인공 | H158: 성북 | I158: 기타(개인,기업) | J158: 민간 | K158: A
A159: 전남 | B159: 나주시 | C159: 석현동 | D159: 141-1 | E159: 주택 | F159: 토사 | G159: 인공 | H159: 석현 | I159: 기타(개인,기업) | J159: 민간 | K159: B
A160: 전남 | B160: 나주시 | C160: 영산동 | D160: 183-1 | E160: 도로 | F160: 암반 | G160: 인공 | H160: 영산 | I160: 나주시 | J160: 공공 | K160: D | L160: 문경 | M160: ㈜에세스엔지니어링 토질및기초기술사 이섭 | N160: 2020-03-25 | O160: 2020-03-25 | P160: 4617000040 | Q160: 2020.-04-24 | R160: 공개 | S160: 시 홈페이지 | T160: 2020-04-27 | U160: 이상없음 | AC160: 안전재난과 | AD160: 문경 | AE160: 061-339-7283
A161: 전남 | B161: 나주시 | C161: 운곡동 | D161: 산 113 | E161: 도로 | F161: 토사 | G161: 자연 | H161: 운곡 | I161: 나주시 | J161: 공공 | K161: B
A162: 전남 | B162: 나주시 | C162: 이창동 | D162: 27-2 | E162: 도로 | F162: 옹벽 | G162: 인공 | H162: 이창 | I162: 나주시 | J162: 공공 | K162: B
A163: 전남 | B163: 나주시 | C163: 대호동 | D163: 산203-12 | E163: 도로 | F163: 암반 | G163: 인공 | H163: 금성 | I163: 나주시 | J163: 공공 | K163: D | L163: 문경 | M163: ㈜에세스엔지니어링 토질및기초기술사 이섭 | N163: 2020-03-13 | O163: 2020-03-13 | P163: 4617000049 | Q163: 2020.-04-24 | R163: 공개 | S163: 시 홈페이지 | T163: 2020-04-27 | U163: 보수·보강 | V163: 중·장기조치 | W163: ○ 낙석 및 토사 흘러내림 현상이 관찰되고 있으므로 보강 필요 | X163: 21년이후 추진 | Y163: 1,000 | Z163: 국비 50%, 시비 50% | AA163: 2021 | AB163: 2021 | AC163: 안전재난과 | AD163: 문경 | AE163: 061-339-7283 | AF163: 2021년 재난안전 관련 국고지원 건의 완료
A164: 전남 | B164: 광양시 | C164: 광양읍 | D164: 779-1 | E164: 기타 | F164: 암반 | G164: 인공 | H164: 용강 | I164: 지자체(광양시) | J164: 공공 | K164: E | AF164: 붕괴위험지역 해제
A165: 전남 | B165: 광양시 | C165: 옥룡면 | D165: 산31-10 | E165: 기타 | F165: 복합 | G165: 인공 | H165: 하운 | I165: 지자체(광양시) | J165: 공공 | K165: D | AF165: 붕괴위험지역 해제
A166: 전남 | B166: 광양시 | C166: 다압면 | D166: 산80-2 | E166: 도로 | F166: 복합 | G166: 인공 | H166: 신원2 | I166: 지자체(광양시) | J166: 공공 | K166: D | AF166: 붕괴위험지역 해제
A167: 전남 | B167: 광양시 | C167: 마동 | D167: 890-6 | E167: 기타 | F167: 복합 | G167: 인공 | H167: 마동2 | I167: 지자체(광양시) | J167: 민간 | K167: D | L167: 안전총괄과 나태언, 중마동 박태훈 | M167: 스팅이앤씨 김철환, 미래지반연구소 황은아 | N167: 2020-02-21 | O167: 2020-03-24 | P167: 4623000015 | Q167: 2020-04-08 | R167: 공개 | S167: 급경사지 | U167: 보수·보강 | V167: 중·장기조치 | W167: 낙석방지책 추가 설치 | X167: 21년이후 추진 | Y167: 1044 | Z167: 국비 50, 시비 50 | AA167: 2020년 이후 | AB167: 2021년 이후 | AC167: 안전총괄과 | AD167: 나태언 | AE167: 061-797-2267
A168: 전남 | B168: 광양시 | C168: 광양읍 | D168: 산7-4 | E168: 도로 | F168: 복합 | G168: 인공 | H168: 오성 | I168: 지자체(광양시) | J168: 공공 | K168: D | L168: 안전총괄과 나태언, 광양읍 정경태 | M168: 스팅이앤씨 김철환, 미래지반연구소 황은아 | N168: 2020-02-05 | O168: 2020-03-25 | P168: 4623000113 | Q168: 2020-04-08 | R168: 공개 | S168: 급경사지 | U168: 이상없음 | W168: 정비 완료 | X168: 조치완료 | Y168: 4000 | Z168: 국비 50, 시비 50 | AC168: 안전총괄과 | AD168: 나태언 | AE168: 061-797-2267
A169: 전남 | B169: 광양시 | C169: 진월면 | D169: 258-10 | E169: 도로 | F169: 복합 | G169: 인공 | H169: 선소1 | I169: 지자체(광양시) | J169: 공공 | K169: E | AF169: 붕괴위험지역 해제
A170: 전남 | B170: 광양시 | C170: 진상면 | D170: 산283-4 | E170: 도로 | F170: 복합 | G170: 인공 | H170: 회두 | I170: 지자체(광양시) | J170: 공공 | K170: D | AF170: 붕괴위험지역 해제
A171: 전남 | B171: 광양시 | C171: 진상면 | D171: 산100 | E171: 도로 | F171: 복합 | G171: 인공 | H171: 어치 | I171: 지자체(광양시) | J171: 공공 | K171: D | AF171: 붕괴위험지역 해제
A172: 전남 | B172: 광양시 | C172: 중동 | D172: 산124-2 | E172: 도로 | F172: 복합 | G172: 인공 | H172: 금광 | I172: 지자체(광양시) | J172: 공공 | K172: D | L172: 안전총괄과 나태언, 중마동 박태훈 | M172: 스팅이앤씨 김철환, 미래지반연구소 황은아 | N172: 2020-02-21 | O172: 2020-03-24 | P172: 4623000087 | Q172: 2020-04-08 | R172: 공개 | S172: 급경사지 | U172: 이상없음 | W172: 정비 완료 | X172: 조치완료 | Y172: 4000 | Z172: 국비 50, 시비 50 | AC172: 안전총괄과 | AD172: 나태언 | AE172: 061-797-2267
A173: 전남 | B173: 광양시 | C173: 중동 | D173: 1183-42 | E173: 도로 | F173: 복합 | G173: 인공 | H173: 성호 | I173: 지자체(광양시) | J173: 공공 | K173: D | L173: 안전총괄과 나태언, 중마동 박태훈 | M173: 스팅이앤씨 김철환, 미래지반연구소 황은아 | N173: 2020-02-21 | O173: 2020-03-24 | P173: 4623000110 | Q173: 2020-04-08 | R173: 공개 | S173: 급경사지 | U173: 이상없음 | W173: 정비 완료 | X173: 조치완료 | Y173: 4000 | Z173: 국비 50, 시비 50 | AC173: 안전총괄과 | AD173: 나태언 | AE173: 061-797-2267
A174: 전남 | B174: 광양시 | C174: 도이동 | D174: 220-19 | E174: 도로 | F174: 복합 | G174: 인공 | H174: 도이 | I174: 지자체(광양시) | J174: 공공 | K174: D | L174: 안전총괄과 나태언, 골약동 김종빈 | M174: 스팅이앤씨 김철환, 미래지반연구소 황은아 | N174: 2020-03-24 | O174: 2020-03-24 | P174: 4623000111 | Q174: 2020-04-08 | R174: 공개 | S174: 급경사지 | U174: 이상없음 | W174: 정비 완료 | X174: 조치완료 | Y174: 4000 | Z174: 국비 50, 시비 50 | AC174: 안전총괄과 | AD174: 나태언 | AE174: 061-797-2267
A175: 전남 | B175: 광양시 | C175: 마동 | D175: 43071 | E175: 도로 | F175: 복합 | G175: 인공 | H175: 와우 | I175: 지자체(광양시) | J175: 공공 | K175: D | L175: 안전총괄과 나태언, 중마동 박태훈 | M175: 스팅이앤씨 김철환, 미래지반연구소 황은아 | N175: 2020-02-21 | O175: 2020-03-24 | P175: 4623000112 | Q175: 2020-04-08 | R175: 공개 | S175: 급경사지 | U175: 이상없음 | W175: 정비 완료 | X175: 조치완료 | Y175: 4600 | Z175: 국비 50, 시비 50 | AC175: 안전총괄과 | AD175: 나태언 | AE175: 061-797-2267
A176: 전남 | B176: 광양시 | C176: 진상면 | D176: 산147 | E176: 도로 | F176: 복합 | G176: 인공 | H176: 섬거 | I176: 지자체(광양시) | J176: 공공 | K176: D | L176: 안전총괄과 나태언, 진상면 최형도 | M176: 스팅이앤씨 김철환, 미래지반연구소 황은아 | N176: 2020-03-05 | O176: 2020-03-25 | P176: 4623000115 | Q176: 2020-04-08 | R176: 공개 | S176: 급경사지 | U176: 이상없음 | W176: 정비 완료 | X176: 조치완료 | Y176: 3000 | Z176: 국비 50, 시비 50 | AC176: 안전총괄과 | AD176: 나태언 | AE176: 061-797-2267
A177: 전남 | B177: 광양시 | C177: 옥곡면 | D177: 산55 | E177: 도로 | F177: 복합 | G177: 인공 | H177: 백암 | I177: 지자체(광양시) | J177: 공공 | K177: D | L177: 안전총괄과 나태언, 옥곡면 김경렬 | M177: 스팅이앤씨 김철환, 미래지반연구소 황은아 | N177: 2020-02-21 | O177: 2020-03-24 | P177: 4623000114 | Q177: 2020-04-08 | R177: 공개 | S177: 급경사지 | U177: 보수·보강 | V177: 중·장기조치 | W177: 우기 전 주요공정 마무리 | X177: 조치중 | Y177: 3000 | Z177: 국비 50, 시비 50 | AA177: 2020년 이후 | AB177: 2021년 | AC177: 안전총괄과 | AD177: 나태언 | AE177: 061-797-2267
A178: 전남 | B178: 광양시 | C178: 진월면 | D178: 산75 | E178: 도로 | F178: 복합 | G178: 인공 | H178: 아동 | I178: 지자체(광양시) | J178: 공공 | K178: D | L178: 안전총괄과 나태언, 진월면 임민용 | M178: 스팅이앤씨 김철환, 미래지반연구소 황은아 | N178: 2020-03-25 | O178: 2020-03-25 | P178: 4623000116 | Q178: 2020-04-08 | R178: 공개 | S178: 급경사지 | U178: 보수·보강 | V178: 중·장기조치 | W178: 도로부 토사 유출 | X178: 21년이후 추진 | Y178: 2600 | Z178: 국비 50, 시비 50 | AA178: 2020년 이후 | AB178: 2021년 이후 | AC178: 안전총괄과 | AD178: 나태언 | AE178: 061-797-2267
A179: 전남 | B179: 광양시 | C179: 진월면 | D179: 산72-1 | E179: 도로 | F179: 복합 | G179: 인공 | H179: 신덕 | I179: 지자체(광양시) | J179: 공공 | K179: D | L179: 안전총괄과 나태언, 진월면 임민용 | M179: 스팅이앤씨 김철환, 미래지반연구소 황은아 | N179: 2020-02-11 | O179: 2020-03-25 | P179: 4623000117 | Q179: 2020-04-08 | R179: 공개 | S179: 급경사지 | U179: 보수·보강 | V179: 중·장기조치 | W179: 도로부 토사 유출 | X179: 21년이후 추진 | Y179: 3000 | Z179: 국비 50, 시비 50 | AA179: 2020년 이후 | AB179: 2021년 이후 | AC179: 안전총괄과 | AD179: 나태언 | AE179: 061-797-2267
A180: 전남 | B180: 광양시 | C180: 다압면 | D180: 산17 | E180: 도로 | F180: 복합 | G180: 인공 | H180: 하천 | I180: 지자체(광양시) | J180: 공공 | K180: D | L180: 안전총괄과 나태언 | M180: 스팅이앤씨 김철환, 미래지반연구소 황은아 | N180: 2020-03-26 | O180: 2020-03-26 | P180: 4623000120 | Q180: 2020-04-08 | R180: 공개 | S180: 급경사지 | U180: 보수·보강 | V180: 중·장기조치 | W180: 연내 공사 완료 | X180: 조치중 | Y180: 3500 | Z180: 국비 50, 시비 50 | AB180: 2020년 | AC180: 안전총괄과 | AD180: 나태언 | AE180: 061-797-2267
A181: 전남 | B181: 광양시 | C181: 성황동 | D181: 산72-7 | E181: 도로 | F181: 복합 | G181: 인공 | H181: 성황 | I181: 지자체(광양시) | J181: 공공 | K181: D | L181: 안전총괄과 나태언, 골약동 김종빈 | M181: 스팅이앤씨 김철환, 미래지반연구소 황은아 | N181: 2020-02-21 | O181: 2020-03-24 | P181: 4623000118 | Q181: 2020-04-08 | R181: 공개 | S181: 급경사지 | U181: 보수·보강 | V181: 중·장기조치 | W181: 특이사항 없음, 지속적인 주의 관찰 | X181: 21년이후 추진 | Y181: 4000 | Z181: 국비 50, 시비 50 | AA181: 2020년 이후 | AB181: 2021년 이후 | AC181: 안전총괄과 | AD181: 나태언 | AE181: 061-797-2267
A182: 전남 | B182: 광양시 | C182: 다압면 | D182: 산4 | E182: 도로 | F182: 복합 | G182: 인공 | H182: 금천 | I182: 지자체(광양시) | J182: 공공 | K182: D | L182: 안전총괄과 나태언 | M182: 스팅이앤씨 김철환, 미래지반연구소 황은아 | N182: 2020-03-26 | O182: 2020-03-26 | P182: 4623000121 | Q182: 2020-04-08 | R182: 공개 | S182: 급경사지 | U182: 보수·보강 | V182: 중·장기조치 | W182: 특이사항 없음, 지속적인 주의 관찰 | X182: 21년이후 추진 | Y182: 3000 | Z182: 국비 50, 시비 50 | AA182: 2020년 이후 | AB182: 2021년 이후 | AC182: 안전총괄과 | AD182: 나태언 | AE182: 061-797-2267
A183: 전남 | B183: 광양시 | C183: 진월면 | D183: 산1-1 | E183: 도로 | F183: 복합 | G183: 인공 | H183: 신아 | I183: 지자체(광양시) | J183: 공공 | K183: D | L183: 안전총괄과 나태언, 진월면 임민용 | M183: 스팅이앤씨 김철환, 미래지반연구소 황은아 | N183: 2020-02-11 | O183: 2020-03-25 | P183: 4623000122 | Q183: 2020-04-08 | R183: 공개 | S183: 급경사지 | U183: 보수·보강 | V183: 중·장기조치 | W183: 사면 보수 보강 필요 | X183: 21년이후 추진 | Y183: 4000 | Z183: 국비 50, 시비 50 | AA183: 2020년 이후 | AB183: 2021년 이후 | AC183: 안전총괄과 | AD183: 나태언 | AE183: 061-797-2267
A184: 전남 | B184: 광양시 | C184: 광양읍 | D184: 산72-7 | E184: 도로 | F184: 복합 | G184: 인공 | H184: 우두 | I184: 지자체(광양시) | J184: 공공 | K184: D | L184: 안전총괄과 나태언, 광양읍 정경태 | M184: 스팅이앤씨 김철환, 미래지반연구소 황은아 | N184: 2020-02-05 | O184: 2020-03-24 | P184: 4623000123 | Q184: 2020-04-08 | R184: 공개 | S184: 급경사지 | U184: 보수·보강 | V184: 중·장기조치 | W184: 사면 보수 보강 필요 | X184: 21년이후 추진 | Y184: 3400 | Z184: 국비 50, 시비 50 | AA184: 2020년 이후 | AB184: 2021년 이후 | AC184: 안전총괄과 | AD184: 나태언 | AE184: 061-797-2267
A185: 전남 | B185: 광양시 | C185: 봉강면 | D185: 산68 | E185: 도로 | F185: 복합 | G185: 인공 | H185: 덕촌 | I185: 지자체(광양시) | J185: 공공 | K185: D | L185: 안전총괄과 나태언, 봉강면 권대은 | M185: 스팅이앤씨 김철환, 미래지반연구소 황은아 | N185: 2020-02-20 | O185: 2020-03-25 | P185: 4623000124 | Q185: 2020-04-08 | R185: 공개 | S185: 급경사지 | U185: 보수·보강 | V185: 중·장기조치 | W185: 사면 보수 보강 필요 | X185: 21년이후 추진 | Y185: 1200 | Z185: 국비 50, 시비 50 | AA185: 2020년 이후 | AB185: 2021년 이후 | AC185: 안전총괄과 | AD185: 나태언 | AE185: 061-797-2267
A186: 전남 | B186: 광양시 | C186: 광양읍 | D186: 산13-1 | E186: 도로 | F186: 복합 | G186: 인공 | H186: 내우 | I186: 지자체(광양시) | J186: 공공 | K186: D | L186: 안전총괄과 나태언, 광양읍 정경태 | M186: 스팅이앤씨 김철환, 미래지반연구소 황은아 | N186: 2020-02-05 | O186: 2020-03-25 | P186: 4623000125 | Q186: 2020-04-08 | R186: 공개 | S186: 급경사지 | U186: 보수·보강 | V186: 중·장기조치 | W186: 사면 보수 보강 필요 | X186: 21년이후 추진 | Y186: 4000 | Z186: 국비 50, 시비 50 | AA186: 2020년 이후 | AB186: 2021년 이후 | AC186: 안전총괄과 | AD186: 나태언 | AE186: 061-797-2267
A187: 전남 | B187: 광양시 | C187: 광양읍 | D187: 산1-2 | E187: 도로 | F187: 복합 | G187: 인공 | H187: 영세 | I187: 지자체(광양시) | J187: 공공 | K187: D | L187: 안전총괄과 나태언, 광양읍 정경태 | M187: 스팅이앤씨 김철환, 미래지반연구소 황은아 | N187: 2020-02-05 | O187: 2020-03-25 | P187: 4623000127 | Q187: 2020-04-08 | R187: 공개 | S187: 급경사지 | U187: 보수·보강 | V187: 중·장기조치 | W187: 특이사항 없음, 지속적인 주의 관찰 | X187: 21년이후 추진 | Y187: 2000 | Z187: 국비 50, 시비 50 | AA187: 2020년 이후 | AB187: 2021년 이후 | AC187: 안전총괄과 | AD187: 나태언 | AE187: 061-797-2267
A188: 전남 | B188: 광양시 | C188: 봉강면 | D188: 70-8 | E188: 도로 | F188: 복합 | G188: 인공 | H188: 공설 | I188: 지자체(광양시) | J188: 공공 | K188: D | L188: 안전총괄과 나태언, 봉강면 권대은 | M188: 스팅이앤씨 김철환, 미래지반연구소 황은아 | N188: 2020-02-20 | O188: 2020-03-24 | P188: 4623000128 | Q188: 2020-04-08 | R188: 공개 | S188: 급경사지 | U188: 보수·보강 | V188: 중·장기조치 | W188: 사면 보수 보강 필요 | X188: 21년이후 추진 | Y188: 4000 | Z188: 국비 50, 시비 50 | AA188: 2020년 이후 | AB188: 2021년 이후 | AC188: 안전총괄과 | AD188: 나태언 | AE188: 061-797-2267
A189: 전남 | B189: 광양시 | C189: 옥룡면 | D189: 산105-6 | E189: 도로 | F189: 복합 | G189: 인공 | H189: 용소 | I189: 지자체(광양시) | J189: 공공 | K189: D | L189: 안전총괄과 나태언, 옥룡면 김성일 | M189: 스팅이앤씨 김철환, 미래지반연구소 황은아 | N189: 2020-02-20 | O189: 2020-03-25 | P189: 4623000129 | Q189: 2020-04-08 | R189: 공개 | S189: 급경사지 | U189: 보수·보강 | W189: 정비 완료 | X189: 조치완료 | Y189: 2322 | Z189: 국비 50, 시비 50 | AC189: 안전총괄과 | AD189: 나태언 | AE189: 061-797-2267
A190: 전남 | B190: 광양시 | C190: 옥곡면 | D190: 산193-2 | E190: 도로 | F190: 복합 | G190: 인공 | H190: 먹방 | I190: 지자체(광양시) | J190: 공공 | K190: D | L190: 안전총괄과 나태언, 옥곡면 김경렬 | M190: 스팅이앤씨 김철환, 미래지반연구소 황은아 | N190: 2020-02-21 | O190: 2020-03-26 | P190: 4623000130 | Q190: 2020-04-08 | R190: 공개 | S190: 급경사지 | U190: 보수·보강 | V190: 중·장기조치 | W190: 특이사항 없음, 지속적인 주의 관찰 | X190: 21년이후 추진 | Y190: 3000 | Z190: 국비 50, 시비 50 | AA190: 2020년 이후 | AB190: 2021년 이후 | AC190: 안전총괄과 | AD190: 나태언 | AE190: 061-797-2267
A191: 전남 | B191: 광양시 | C191: 다압면 | D191: 산164 | E191: 도로 | F191: 복합 | G191: 인공 | H191: 항동 | I191: 지자체(광양시) | J191: 공공 | K191: D | L191: 안전총괄과 나태언 | M191: 스팅이앤씨 김철환, 미래지반연구소 황은아 | N191: 2020-03-26 | O191: 2020-03-26 | P191: 4623000131 | Q191: 2020-04-08 | R191: 공개 | S191: 급경사지 | U191: 보수·보강 | V191: 중·장기조치 | W191: 특이사항 없음, 지속적인 주의 관찰 | X191: 21년이후 추진 | Y191: 1000 | Z191: 국비 50, 시비 50 | AA191: 2020년 이후 | AB191: 2021년 이후 | AC191: 안전총괄과 | AD191: 나태언 | AE191: 061-797-2267
A192: 전남 | B192: 광양시 | C192: 태인동 | D192: 산86-1 | E192: 도로 | F192: 복합 | G192: 인공 | H192: 궁기 | I192: 지자체(광양시) | J192: 공공 | K192: D | L192: 안전총괄과 나태언, 태인동 강순원 | M192: 스팅이앤씨 김철환, 미래지반연구소 황은아 | N192: 2020-03-05 | O192: 2020-03-26 | P192: 4623000132 | Q192: 2020-04-08 | R192: 공개 | S192: 급경사지 | U192: 보수·보강 | V192: 중·장기조치 | W192: 낙석방지책 설치, 지속적인 주의관찰 | X192: 21년이후 추진 | Y192: 3000 | Z192: 국비 50, 시비 50 | AA192: 2020년 이후 | AB192: 2021년 이후 | AC192: 안전총괄과 | AD192: 나태언 | AE192: 061-797-2267
A193: 전남 | B193: 광양시 | C193: 태인동 | D193: 1653-4 | E193: 도로 | F193: 복합 | G193: 인공 | H193: 용지 | I193: 지자체(광양시) | J193: 공공 | K193: D | L193: 안전총괄과 나태언, 태인동 강순원 | M193: 스팅이앤씨 김철환, 미래지반연구소 황은아 | N193: 2020-03-05 | O193: 2020-03-26 | P193: 4623000133 | Q193: 2020-04-08 | R193: 공개 | S193: 급경사지 | U193: 보수·보강 | V193: 중·장기조치 | W193: 부분적인 낙석 발생, 주의관찰 필요 | X193: 21년이후 추진 | Y193: 3000 | Z193: 국비 50, 시비 50 | AA193: 2020년 이후 | AB193: 2021년 이후 | AC193: 안전총괄과 | AD193: 나태언 | AE193: 061-797-2267
A194: 전남 | B194: 광양시 | C194: 진상면 | D194: 산99-2 | E194: 도로 | F194: 복합 | G194: 인공 | H194: 수어 | I194: 지자체(광양시) | J194: 공공 | K194: D | L194: 안전총괄과 나태언, 진상면 최형도 | M194: 스팅이앤씨 김철환, 미래지반연구소 황은아 | N194: 2020-03-05 | O194: 2020-03-26 | P194: 4623000134 | Q194: 2020-04-08 | R194: 공개 | S194: 급경사지 | U194: 보수·보강 | V194: 중·장기조치 | W194: 낙석관찰, 주기적인 주의 관찰 필요 | X194: 21년이후 추진 | Y194: 3000 | Z194: 국비 50, 시비 50 | AA194: 2020년 이후 | AB194: 2021년 이후 | AC194: 안전총괄과 | AD194: 나태언 | AE194: 061-797-2267
A195: 전남 | B195: 광양시 | C195: 진상면 | D195: 산212-1 | E195: 도로 | F195: 복합 | G195: 인공 | H195: 상평 | I195: 지자체(광양시) | J195: 공공 | K195: D | L195: 안전총괄과 나태언, 진상면 최형도 | M195: 스팅이앤씨 김철환, 미래지반연구소 황은아 | N195: 2020-03-05 | O195: 2020-03-26 | P195: 4623000135 | Q195: 2020-04-08 | R195: 공개 | S195: 급경사지 | U195: 보수·보강 | V195: 중·장기조치 | W195: 낙석관찰, 주기적인 주의 관찰 필요 | X195: 21년이후 추진 | Y195: 3000 | Z195: 국비 50, 시비 50 | AA195: 2020년 이후 | AB195: 2021년 이후 | AC195: 안전총괄과 | AD195: 나태언 | AE195: 061-797-2267
A196: 전남 | B196: 광양시 | C196: 진상면 | D196: 산196-1 | E196: 도로 | F196: 복합 | G196: 인공 | H196: 신황 | I196: 지자체(광양시) | J196: 공공 | K196: D | L196: 안전총괄과 나태언, 진상면 최형도 | M196: 스팅이앤씨 김철환, 미래지반연구소 황은아 | N196: 2020-03-05 | O196: 2020-03-26 | P196: 4623000136 | Q196: 2020-04-08 | R196: 공개 | S196: 급경사지 | U196: 보수·보강 | V196: 중·장기조치 | W196: 낙석관찰, 주기적인 주의 관찰 필요 | X196: 21년이후 추진 | Y196: 3000 | Z196: 국비 50, 시비 50 | AA196: 2020년 이후 | AB196: 2021년 이후 | AC196: 안전총괄과 | AD196: 나태언 | AE196: 061-797-2267
A197: 전남 | B197: 광양시 | C197: 진월면 | D197: 55-1 | E197: 주택 | F197: 복합 | G197: 자연 | H197: 망덕 | I197: 지자체(광양시) | J197: 공공 | K197: E | L197: 안전총괄과 나태언, 진월면 임민용 | M197: 스팅이앤씨 김철환, 미래지반연구소 황은아 | N197: 2020-02-11 | O197: 2020-03-26 | P197: 4623000137 | Q197: 2020-04-08 | R197: 공개 | S197: 급경사지 | U197: 보수·보강 | W197: 정비 완료 | X197: 조치완료 | Y197: 9980 | Z197: 국비 50, 시비 50 | AC197: 안전총괄과 | AD197: 나태언 | AE197: 061-797-2267
A198: 전남 | B198: 광양시 | C198: 진월면 | D198: 산144-8 | E198: 기타 | F198: 암반 | G198: 인공 | H198: 오사 | I198: 지자체(광양시) | J198: 공공 | K198: D | L198: 안전총괄과 나태언, 진월면 임민용 | M198: 스팅이앤씨 김철환, 미래지반연구소 황은아 | N198: 2020-02-11 | O198: 2020-03-26 | P198: 4623000139 | Q198: 2020-04-08 | R198: 공개 | S198: 급경사지 | U198: 보수·보강 | V198: 중·장기조치 | W198: 사면 보수 보강 필요 | X198: 21년이후 추진 | Y198: 12000 | Z198: 국비 50, 시비 50 | AA198: 2020년 이후 | AB198: 2021년 이후 | AC198: 안전총괄과 | AD198: 나태언 | AE198: 061-797-2267
A199: 전남 | B199: 광양시 | C199: 광양읍 | D199: 산21-5 | E199: 주택 | F199: 암반 | G199: 인공 | H199: 신촌 | I199: 지자체(광양시) | J199: 공공 | K199: D | L199: 안전총괄과 나태언, 광양읍 정경태 | M199: 스팅이앤씨 김철환, 미래지반연구소 황은아 | N199: 2020-02-05 | O199: 2020-03-24 | P199: 4623000140 | Q199: 2020-04-08 | R199: 공개 | S199: 급경사지 | U199: 이상없음 | W199: 정비 완료 | X199: 조치완료 | Y199: 4000 | Z199: 국비 50, 시비 50 | AC199: 안전총괄과 | AD199: 나태언 | AE199: 061-797-2267
A200: 전남 | B200: 광양시 | C200: 다압면 | D200: 산82-4 | E200: 도로 | F200: 복합 | G200: 인공 | H200: 섬진 | I200: 지자체(광양시) | J200: 공공 | K200: D | L200: 안전총괄과 나태언 | M200: 스팅이앤씨 김철환, 미래지반연구소 황은아 | N200: 2020-03-25 | O200: 2020-03-25 | P200: 4623000141 | Q200: 2020-04-08 | R200: 공개 | S200: 급경사지 | U200: 보수·보강 | V200: 중·장기조치 | W200: 우기 전 주요공정 마무리 | X200: 조치중 | Y200: 4900 | Z200: 국비 50, 시비 50 | AA200: 2020년 이후 | AB200: 2021년 | AC200: 안전총괄과 | AD200: 나태언 | AE200: 061-797-2267
A201: 전남 | B201: 광양시 | C201: 봉강면 | D201: 지곡리 산40 | E201: 도로 | F201: 복합 | G201: 인공 | H201: 지곡 | I201: 지자체(광양시) | J201: 공공 | K201: D | L201: 안전총괄과 나태언, 봉강면 권대은 | M201: 스팅이앤씨 김철환, 미래지반연구소 황은아 | N201: 2020-02-20 | O201: 2020-03-24 | P201: 4623000142 | Q201: 2020-04-08 | R201: 공개 | S201: 급경사지 | U201: 보수·보강 | V201: 중·장기조치 | W201: 사면 보수 보강 필요 | X201: 21년이후 추진 | Y201: 1200 | Z201: 국비 50, 시비 50 | AA201: 2020년 이후 | AB201: 2021년 이후 | AC201: 안전총괄과 | AD201: 나태언 | AE201: 061-797-2267
... 1048 more rows
